Workbook

Sheet Stappenplan
A1: Kostenmodel | C1: KSDW raming budget en renovaties
A2: Versiedatum | C2: 7-11-2025
A3: Vragen over beheer | C3: Marcel Bakker / Babette Schep / Reinier Frölke
A5: Start | B5: # | C5: Importeren data uit KSDW
A6: Met deze tool kunnen ramingen uit de kostenstandaard drinkwater (KSDW) worden "doorvertaald" naar daadwerkelijke investeringen, waar ook rekening wordt gehouden met de verhouding nieuwbouw en renovatie. De basis van deze berekening is de input vanuit de kostenstandaard webtool . Stap 1 omvat het importeren van de juiste gegevens uit de KSDW export naar het voorliggende excelbestand. We gebruiken de uitgangspunten uit tabblad Algemene uitgangspunten en de grove ramingsdata uit tabblad Data CoP KSDW. Voor het gebruik van deze raming budget en renovatietool is het van belang dat in het project in de KSDW: - De processen voor 100% capaciteit ingevoerd worden, ookal wordt een deel van de capaciteit gerenoveerd of met rust gelaten. Dit kan later in dit Excel sjabloon worden verwerkt. - Een eventuele redundantiefactor voor het strikt scheiden van straten buiten de KSDW wordt gehouden. Het effect hiervan op de kosten kan later in dit Excel sjabloon toegevoegd worden. Op tabblad Bijlage Begrippen SSK wordt door middel van een voorbeeld uitleg gegeven over de verschillende termen binnen de SSK systematiek, deze worden ook gebruikt in deze budget- en renovatietool.
A8: 1) Algemene uitgangspunten | B8: 1.1 | C8: Exporteer het alternatief (als Excel) vanaf de kostenstandaard webtool (www.kostenstandaard.nl), zie figuur rechts
B9: 1.2 | C9: Selecteer in deze Excel export uit de kostenstandaard webtool het tabblad "Algemene uitgangspunten"
B10: 1.3 | C10: Ga op cel A1 staan en typ "Ctrl+a" en vervolgens "Ctrl+c" om alle gegevens te selecteren en te kopieren.
B11: 1.4 | C11: Vervolgens kies Excel "KSDW-Raming Budget en renovaties" en open het tabblad "import Alg. uitgangspunten KSDW"
B12: 1.5 | C12: Ga op cel A1 staan en typ "Ctrl+v". De uitgangspunten zijn nu geimporteerd en worden gebruikt in de rest van de stappen
A14: 2) Data CoP KDSW | B14: 2.1 | C14: Selecteer in de Excel export uit de kostenstandaard webtool het tabblad "DATA-CoP KSDW"
B15: 2.2 | C15: Ga op cel A1 staan en typ "Ctrl+a" en "Ctrl+c"
B16: 2.3 | C16: Vervolgens kies Excel "KSDW-Raming Budget en renovaties" en open hier het tabblad "import DATA-CoP KSDW"
B17: 2.4 | C17: Ga op cel A1 staan en typ "Ctrl+v"
A21: A | C21: Tabblad A Scope parameters
A22: Om de ramingen uit de KSDW te vertalen naar daadwerkelijke investeringen (of investeringsbudgetten) moeten meer aspecten worden meegenomen. Dit tabblad geeft de mogelijkheid om verschillende onderdelen toe te voegen aan de raming uit de kostenstandaard, waaronder sloopkosten, indirecte bouwkosten, projectkosten, toeslagen, etc. Hiervoor zijn defaultwaarden opgenomen, deze kunnen naar eigen inzicht en situatie worden aangepast.
C23: Er zijn vijf categorieen die kunnen worden ingevuld: 1) bouwkosten, 2) vastgoedkosten, 3) projectkosten, 4) bijkomende kosten en 5) scope toeslagen
C24: De lichtgeel gemarkeerde cellen kunnen worden ingevuld.
C25: Als de cel niet overeenkomt met de ingestelde waarde kleurt de cel oranje.
A27: 1) Bouwkosten | B27: A.1 | C27: Vul in cel C2 de sloopkosten in (€)
B28: A.2 | C28: Vul in cel C3 het percentage verwachte indirecte bouwkosten in specifiek voor de discipline CTB, gerekend over de directe bouwkosten.
B29: A.3 | C29: Vul in cel C4 het percentage verwachte indirecte bouwkosten in specifiek voor de discipline WTB, gerekend over de directe bouwkosten.
B30: A.4 | C30: Vul in cel C5 het percentage verwachte indirecte bouwkosten in specifiek voor de discipline E&I, gerekend over de directe bouwkosten.
B31: A.5 | C31: Vul in cel C6 het percentage verwachte indirecte bouwkosten in specifiek voor de discipline PA, gerekend over de directe bouwkosten.
C33: Vul waarden in voor de volgende posten. Let op: voorkom dubbelingen bij het invullen, waar sommige kostenposten mogelijk onder twee categorieën kunnen vallen.
A34: 2) Vastgoedkosten | B34: A.6 | C34: Vul in cel C8 een bedrag voor vastgoedkosten in.
A35: 3) Projectkosten | B35: A.7 | C35: Vul in cel C11 een percentage in voor de algemene projectkosten, gerekend over de totale bouwkosten (1) + toeslagen (5)
B36: A.8 | C36: Vul in cel C12 een percentage in voor interne uren, gerekend over de totale bouwkosten (1) + toeslagen (5)
A37: 4) Overige bijkomende kosten | B37: A.9 | C37: Vul in cel C14 een percentage in voor overige bijkomende kosten, gerekend over de totale bouwkosten (1) + toeslagen (5)
A39: 5) Scope toeslagen | C39: Hier kunnen extra scope toeslagen die voor het project gelden ingevoerd worden in cel C21 - C28 per onderwerp.
B40: A.10 | C40: In E20 - G27 staan de verwachte bandbreedtes per toeslag
B41: A.11 | C41: In H20 - M27 kunnen indien gewenst de default waardes per discipline worden aangepast. Voor een simpele werkwijze wordt aangeraden hier geen gebruik van te maken.
B42: A.12 | C42: Cel B27 bevat een reserve optie om handmatig een toeslag toe te voegen, nog genoemd nader te detailleren. Hier kan naar wens een aanvullende toeslag kunnen worden toegevoegd die invloed heeft op de kosten (positief of negatief).
A44: B | C44: Tabblad Nieuwbouw (NW) en Renovatie parameters
A45: De ramingen uit de KSDW gaan uit van het bouwen van volledig nieuwe processtappen. In de praktijk kan het echter voorkomen dat slechts een deel nieuwbouw betreft, en het andere deel renovatie. Dit werkt uiteraard door in de uiteindelijke kosten. Het tabblad Renovatie parameters biedt de mogelijkheid om de verhouding nieuwbouw en renovatie mee te nemen in de raming. Dit kan met het eenvoudig aangeven van het niewbouw- en renovatie deel (B.1), en als gewenst diepgaander door percentages per discipline aan te passen (B.2 en B.3).
C46: In kolom C staan de processtappen uit de kostenstandaard opgesomd.
A48: 1) Aandeel nieuwbouw en renovatie | B48: B.1. | C48: Bepaal per processtap welk % nieuwbouw betreft en welk % van de processtap die reeds aanwezig gerenoveerd dient te worden. Vul in kolom C (vanaf gele cel C14) per processtap het percentage van de installatie wat nieuw gebouwd dient te worden. Voorbeeld: In de huidige situatie zijn 5 snelfilters opgesteld. Om de gewenste capaciteit (zoals ingevuld in de KSDW) te behalen moeten voor de processtap Snelfiltratie 5 nieuwe snelfilters worden bijgebouwd en de 5 bestaande worden gerenoveerd. In dit geval moet het percentage nieuwbouw op 50% worden gezet.
C49: Vervolgens wordt in kolom L automatisch het percentage renovatie bepaald (= 100% - % nieuwbouw). Het percentage voor nieuwbouw en renovatie vormen worden vervolgens vermenigvuldigd met kostenverhogende default waarden (indien van toepassing). Deze komen tot uiting in de volgende tabbladen. Voorbeeld: In de huidige situatie zijn 10 snelfilters opgesteld. Om de gewenste capaciteit (zoals ingevuld in de KSDW) te behalen moeten voor de processtap Snelfiltratie 5 nieuwe snelfilters worden bijgebouwd en 5 van de 10 bestaande worden gerenoveerd. In dit geval moet het percentage nieuwbouw op 33% staan, en het percentage nieuwbouw (handmatig) op 33% worden gezet. Hierbij blijft voor 33% aan snelfilters waar niks mee gebeurd buiten de raming
A51: Indien gewenst kan meer detail worden aangebracht in deze percentages, specifiek op discipline niveau. Wanneer de gewenste raming hoog-over van karakter is wordt deze stap afgeraden om onnodige complexiteit te vermijden. Als dit wel gewenst is kan het + symbool in rij 70 worden aangeklikt. Vervolgens verschijnen opties om aanvullende kosten per discipline toe te wijzen, zowel voor het deel nieuwbouw (B.2) en het deel renovatie (B.3).
A52: 2) Aandeel nieuwbouw, werkzaamheden gespecificeerd per discipline
C53: Indien nog niet geopend; klap de kolommen D tot I open door te klikken op het + symbool in kolom I.
C54: De eerder in kolom C ingevulde waarde wordt gebruikt voor het aandeel nieuwbouw voor alle disciplines. Deze waarde wordt aangenomen voor alle disciplines. De kolommen D t/m I bieden de mogelijkheid om per discipline het percentage aan te passen. Dit kan in het geval bepaalde werkzaamheden voor een processtap minder (of meer) kosten meebrengen in het geval van nieuwbouw.Ook kan een percentage voor vulmaterialen worden ingevuld. Voorbeeld: Door het aanpassen van de eerder opgegeven waarde kan rekening worden gehouden met een reeds aanwezig en beschikbaar gebouw waar een nieuw te bouwen processtap in wordt geplaatst. In dat geval kan het percentage voor C&B sterk worden verlaagd van 100% naar bijvoorbeeld 20% (kleine aanpassingen aan gebouw).
B55: B.2 | C55: Standaard wordt de waarde uit kolom C overgenomen voor alle disciplines, deze kan handmatig worden overschreven worden indien gewenst. Let op: in deze cellen is geen automatische aanpassing ingebouwd naar andere cellen.
A56: 3) Aandeel renovatie, werkzaamheden gespecificeerd per discipline
C57: Indien nog niet geopend; klap de kolommen K tot P open door te klikken op het + symbool in kolom P.
C58: Automatisch staat hier het percentage voor renovatie (= 100% - % nieuwbouw). Als er bij geen enkele processtap sprake is van renovatie is het niet mogelijk (en nodig) om B.3 uit te voeren. Voorbeeld: Bij renovatie van een processtap kan gebruik worden gemaakt van nog aanwezige mechanische onderdelen. De kosten voor renovatie vallen daardoor lager uit dan wanneer deze onderdelen niet beschikbaar zouden zijn. In dat geval kan het percentage voor WTB worden verlaagd.
B59: B.3 | C59: Standaard wordt de waarde uit kolom L overgenomen voor alle disciplines, deze kan handmatig worden overschreven worden indien gewenst.
A61: Indien gewenst kunnen de kostenverhogende factoren worden aangepast (ten opzichte van een defaultwaarde).
A62: 3.1) Toeslagpercentage renovatie(default per discpl) | C62: Ten opzichte van nieuwbouwkosten zijn renovatiekosten hoger voor dezelfde items. Dit komt vanwege moeilijkere aanpassingen in/rondom bestaande bouwwerken ten opzichte van nieuwbouw (green field). Tabel 3.1 (AD1-AJ7) geeft aan met welk percentage renovatiekosten hoger worden gerekend dan nieuwbouwkosten. Deze percentages komen bovenop de kosten die voor nieuwbouw gelden.
B63: B.4 | C63: De tabel roont default toeslagpercentages. Indien gewenst kan in de gele cellen (rij 4) een ander percentage worden ingevuld. De roodgekleurde waarden in rij 5 tot 7 tonen aangeraden bandbreedtes.
A65: 3a) Toeslagpercentage renovatie (per processtap) | C65: De default waarden in regel 5 worden in de regels 13-23 als waarden overgenomen.
C66: In cel AD5-AI 9 staan de verwachte bandbreedtes voor de extra renovatiekosten per discipline | M66: Er staat een standaard waarde ingevuld. Deze mag overschreven worden indien gewenst
B67: B.5 | C67: Wijzig de default waarden in cellen AD13-AI33 indien gewenst | M67: Wanneer de waarde overschreven is en je het weer terug wilt zetten kopieer je simpelweg een formule uit de regels eronder in dezelfde kolom
A70: C | C70: Tabblad C Begrotingsblad
C71: Hier staat het overzicht van totaalkosten, opgesplitst in nieuwbouw en renovatie (inclusief evt toeslagen).
A73: D | C73: Tabblad D Presentatie+grafieken
C74: Hier zijn grafieken te vinden van:
C75: Bouwkosten per processtap (inclusief indirecte bouwkosten, exclusief toeslagen)
C76: Bouwkosten per discipline (inclusief indirecte bouwkosten, exclusief toeslagen)
C77: Investeringskosten (totale kosten)
C78: Toeslagen per onderwerp
C79: Toeslagen per discipline
C80: Projectkosten
A82: E | C82: Tabblad E Rekenblad
C83: Hier is het overzicht gegeven van de verschillende kosten (nieuwbouw/renovatie/toeslag/algemene kosten etc.), berekend aan de hand van de eerder ingevulde gegevens.
C84: Dit tabblad is beveiligd zodat de input alleen kan worden aangepast op de daarvoor bestemde plekken. | D84: Nog beveiligen

Sheet import Alg. uitgangspunten KSDW
A1: Algemene uitgangspunten
A3: Auteur:
A4: Bedrijf:
A5: Datum:
A7: Project naam:
A8: Alternatief:
A10: Project kengetallen
A11: Berekening op basis van:
A12: Ontwerpdebiet productie: | C12: m³/uur
A13: Ontwerpdebiet distributie: | C13: m³/uur
A14: Inname: | C14: m³/uur
A15: Dag piekfactor:
A16: Uur piekfactor:
A18: Land:

Sheet import DATA-CoP KSDW
A1: PLAK HIER

Sheet A Scope parameters
A1: 1 | B1: Bouwkosten | C1: Default waarde | D1: Toelichting | E1: Minimum | F1: Default | G1: Maximum
B2: Sloopkosten | C2: 0 | D2: Vul de totale sloopkosten. Let op: boekhoudkundig zijn dit GEEN investeringskosten en worden apart gehouden. Voor de volledigheid worden deze kosten hier wel meegenomen. | E2: - | F2: - | G2: - | X2: Origineel KSDW
B3: Indirecte bouwkosten discipline Civiele techniek en Bouwkunde (CTB) | C3: 0.25 | D3: Voor het meenemen van indirecte bouwkosten bij huidige marktsituatie. Dit komt bovenop de directe bouwkosten voor deze discipline uit de KSDW-raming. | E3: 0.15 | F3: 0.25 | G3: 0.45 | W3: c | X3: 0.2
B4: Indirecte bouwkosten discipline Werktuigbouwkunde (WTB) | C4: 0.3 | D4: Voor het meenemen van indirecte bouwkosten bij huidige marktsituatie. Dit komt bovenop de directe bouwkosten voor deze discipline uit de KSDW-raming. | E4: 0.2 | F4: 0.3 | G4: 0.5 | W4: w | X4: 0.25
B5: Indirecte bouwkosten discipline Elektro & Instrumentatie (E&I) | C5: 0.4 | D5: Voor het meenemen van indirecte bouwkosten bij huidige marktsituatie. Dit komt bovenop de directe bouwkosten voor deze discipline uit de KSDW-raming. | E5: 0.25 | F5: 0.4 | G5: 0.6 | W5: e | X5: 0.35
B6: Indirecte bouwkosten discipline Procesautomatisering (PA) | C6: 0.4 | D6: Voor het meenemen van indirecte bouwkosten bij huidige marktsituatie. Dit komt bovenop de directe bouwkosten voor deze discipline uit de KSDW-raming. | E6: 0.25 | F6: 0.4 | G6: 0.6 | W6: pa | X6: 0.35
A8: 2 | B8: Vastgoedkosten (grondaankoop, zakelijk recht e.d.) | C8: 0 | D8: Bedrag in € | E8: - | F8: - | G8: -
A10: 3 | B10: Engineeringskosten (OG+IB) | C10: Default waarde | D10: Toelichting | E10: Minimum | F10: Default | G10: Maximum
B11: Kosten t.b.v. (voor)onderzoek, engineering/ontwerp, adviesdiensten, evt toezicht door IB en/of OG. | C11: 0.2 | D11: percentage over bouwk+toeslagen | E11: 0.08 | F11: 0.2 | G11: 0.35
B12: Interne uren opdrachtgever (specificeren, toetsen, administratie, toezicht) | C12: 0.1 | D12: percentage over bouwk+toeslagen | E12: 0.05 | F12: 0.1 | G12: 0.15
A14: 4 | B14: Overige bijkomende kosten (leges/verzekeringen/archeologie/NGO e.d.) | C14: 0.04 | D14: percentage over bouwk+toeslagen | E14: 0 | F14: 0.01 | G14: 0.02
H17: Toeslagpercentage per discipline (%)
A18: 5 | B18: Scope toeslagen | C18: Toeslag percentage % | D18: Toelichting | E18: Minimum | F18: Default | G18: Maximum | H18: CTB | I18: WTB | J18: E&I | K18: PA
B19: Onderwerpen | C19: Default waarde | E19: % | F19: % | G19: % | H19: % | I19: % | J19: % | K19: % | M19: Verdere toelichting
B20: Duurzame materialen / circulair bouwen | C20: 0.1 | D20: Extra kosten door toepassing van duurzame materialen of technieken (duurzame materialen, circulariteit, natuurinclusief bouwen etc.). Dit is exclusief de extra kosten voor het gebruik van elektrisch materieel (zie volgende rij) . | E20: 0 | F20: 0.1 | G20: 0.25 | H20: =$C20 -> 0.1 | I20: 0.1 | J20: 0.1 | K20: 0.1 | M20: De geel gemarkeerde cellen mogen overschreven worden. Wanneer de cel in kolommen H-K overschreven is dan kleurt het oranje. Toeslagen worden berekend over de Totale Bouwkosten (BK) incl. toeslagen
B21: Elektrisch werken (emissieloos bouwen) | C21: 0.06 | D21: Meerkosten door inzet elektrische apparatuur en materieel in verband met emissieloos bouwen | E21: 0 | F21: 0.06 | G21: 0.15 | H21: =$C21 -> 0.06 | I21: 0.06 | J21: 0.06 | K21: 0.06 | M21: Wanneer je de automatische invulling weer terug wil zetten kopieer je een andere cel uit de kolom waar de formule of verwijzing nog in staat. Automatisch zal de formule het voor die regel goed weergeven
B22: Volledig onafhankelijke straten (keuzelijst) | C22: =IF('F Redundantietoeslag'!X9=1,'F Redundantietoeslag'!W5,IF('F Redundantietoeslag'!X9=2,'F Redundantietoeslag'!W6,IF('F Redundantietoeslag'!X9=3,'F Redundantietoeslag'!W7,'F Redundantietoeslag'!W8))) -> 0 | D22: 1 default onafh straat = 0% toeslag 2 volledig onafh straten = +20% toeslag 3 volledig onafh straten = +39% toeslag 4 volledig onafh straten = +52% toeslag | E22: 0 | F22: 0 | G22: 0.52 | H22: 0 | I22: 0 | J22: 0 | K22: 0
B23: Extra kosten standaardisatie | C23: 0.05 | D23: Extra kosten t.g.v. standaardisatie eisen | E23: 0 | F23: 0.05 | G23: 0.1 | H23: 0.05 | I23: 0.05 | J23: 0.05 | K23: 0.05
B24: Extra kosten langere BOUWTIJD t.o.v. normaal | C24: 0 | D24: De extra tijd die benodigd is door omstandigheden. | E24: 0 | F24: 0 | G24: 0.05 | H24: 0 | I24: 0 | J24: 0 | K24: 0
B25: Object overstijgende Risicoreservering (bv door marktsituatie) | C25: 0.15 | D25: Overspannen markt | E25: 0.05 | F25: 0.15 | G25: 0.3 | H25: 0.15 | I25: 0.15 | J25: 0.15 | K25: 0.15
B26: Object overstijgende Risicoreservering scope change | C26: 0.05 | E26: 0 | F26: 0.05 | G26: 0.1 | H26: 0.05 | I26: 0.05 | J26: 0.05 | K26: 0.05
B27: Nader te detailleren | C27: 0 | D27: Naar eigen invulling te gebruiken (bv inrichting terrein met infra leidingen/wegen etc | E27: - | F27: - | G27: - | H27: 0 | I27: 0 | J27: 0 | K27: 0
G29: Totaal | H29: =SUM(H20:H27) -> 0.41 | I29: 0.41 | J29: 0.41 | K29: 0.41

Sheet B Nw en Renovatie parameters
Y1: Tabel 3.1 Default toeslagpercentages renovatie
Y2: =$D12 -> CTB | Z2: =$E11 -> WTB | AA2: =$F11 -> E & I | AB2: =$G11 -> PA | AD2: Verdere toelichting
Y3: % | Z3: % | AA3: % | AB3: % | AD3: De default toeslagpercentagen kunnen gewijzigd worden n.a.v. werkzaamheden binnen project. Tabel 3.1 (links) geeft richtlijnen voor deze percentages.
D4: Let op! Na overschrijving vervalt de formule die nieuwbouw en renovatie aan elkaar linkt (100% - nieuwbouw % = renovatie %). Deze formule kan weer worden terug gekopieerd uit de regel daaronder of -boven. | J4: Let op! Na handmatige overschrijving van het renovatie % vervalt de formule die nieuwbouw en renovatie aan elkaar linkt (100% - nieuwbouw % = renovatie %). Deze formule kan weer worden terug gekopieerd uit de regel daaronder of -boven. | Q4: Let op! Deze tabel geldt als rekenblad, maak hier geen aanpassingen | X4: Default toeslagpercentage renovatie | Y4: 0.3 | Z4: 0.25 | AA4: 0.25 | AB4: 0.02
X5: Minimum richtlijn | Y5: 0.2 | Z5: 0.15 | AA5: 0.15 | AB5: 0.01
X6: Gemiddeld | Y6: 0.3 | Z6: 0.25 | AA6: 0.25 | AB6: 0.02
C7: NIEUWBOUW | J7: RENOVATIE | X7: Maximum richtlijn | Y7: 0.4 | Z7: 0.35 | AA7: 0.35 | AB7: 0.05
J8: Invullen wat te doen n.a.v. scope project | Q8: Totale som deel nieuwbouw en deel renovatie
C9: Tabel 1. Aandeel NIEUWBOUW binnen project | D9: Evt. Invullen scope per discipline indien gewenst | J9: Tabel 2. Aandeel RENOVATIE binnen project | K9: Evt. Invullen scope per discipline indien gewenst | Q9: Let op: hier geen aanpassingen maken | Y9: Tabel 3.2 Toeslagpercentage renovatie per procesdeel | AD9: Verdere toelichting
D10: (bestaande situatie/scope = 100%) | K10: =D10 -> (bestaande situatie/scope = 100%) | AD10: In tabel 3.2 (links) kunnen de toeslagpercentagen per processtap gewijzigd worden n.a.v. werkzaamheden binnen project
E11: WTB | F11: E & I | G11: PA
C12: Gemiddelde alle disciplines | D12: CTB | H12: Vulmaterialen | J12: Gemiddelde alle disciplines | K12: CTB | L12: =$E11 -> WTB | M12: =$F11 -> E & I | N12: =$G11 -> PA | O12: =$H12 -> Vulmaterialen | Q12: =$D12 -> CTB | R12: =$E11 -> WTB | S12: =$F11 -> E & I | T12: =$G11 -> PA | U12: =$H12 -> Vulmaterialen | Y12: =$D12 -> CTB | Z12: =$E11 -> WTB | AA12: =$F11 -> E & I | AB12: =$G11 -> PA
B13: Processtapbenaming | C13: % | D13: % | E13: % | F13: % | G13: % | J13: % | K13: % | L13: % | M13: % | N13: % | Q13: % | R13: % | S13: % | T13: % | Y13: % | Z13: % | AA13: % | AB13: %
A14: ='import DATA-CoP KSDW '!D6 -> 0 | B14: ='import DATA-CoP KSDW '!E6 -> 0 | C14: =IF(A14=0,0,1) -> 0 | D14: =$C14 -> 0 | E14: =$C14 -> 0 | F14: =$C14 -> 0 | G14: =$C14 -> 0 | H14: =$C14 -> 0 | J14: =IF(A14=0,0,1-C14) -> 0 | K14: =IF((D14<>$C14),(1-D14),$J14) -> 0 | L14: =IF((E14<>$C14),(1-E14),$J14) -> 0 | M14: 0 | N14: 0 | O14: 0 | Q14: =D14+K14 -> 0 | R14: =E14+L14 -> 0 | S14: =F14+M14 -> 0 | T14: =G14+N14 -> 0 | U14: =H14+O14 -> 0 | Y14: =IF($A14=0,0,Y$4) -> 0 | Z14: =IF($A14=0,0,Z$4) -> 0 | AA14: 0 | AB14: 0
A15: ='import DATA-CoP KSDW '!D7 -> 0 | B15: ='import DATA-CoP KSDW '!E7 -> 0 | C15: =IF(A15=0,0,1) -> 0 | D15: 0 | E15: 0 | F15: 0 | G15: 0 | H15: 0 | J15: =IF(A15=0,0,1-C15) -> 0 | K15: 0 | L15: 0 | M15: =IF((F15<>$C15),(1-F15),$J15) -> 0 | N15: =IF((G15<>$C15),(1-G15),$J15) -> 0 | O15: =IF((H15<>$C15),(1-H15),$J15) -> 0 | Q15: =D15+K15 -> 0 | R15: =E15+L15 -> 0 | S15: =F15+M15 -> 0 | T15: 0 | U15: 0 | Y15: 0 | Z15: 0 | AA15: 0 | AB15: 0
A16: ='import DATA-CoP KSDW '!D8 -> 0 | B16: ='import DATA-CoP KSDW '!E8 -> 0 | C16: 0 | D16: 0 | E16: 0 | F16: 0 | G16: 0 | H16: 0 | J16: =IF(A16=0,0,1-C16) -> 0 | K16: 0 | L16: 0 | M16: 0 | N16: 0 | O16: 0 | Q16: 0 | R16: 0 | S16: 0 | T16: 0 | U16: 0 | Y16: 0 | Z16: 0 | AA16: 0 | AB16: 0
A17: ='import DATA-CoP KSDW '!D9 -> 0 | B17: ='import DATA-CoP KSDW '!E9 -> 0 | C17: 0 | D17: 0 | E17: 0 | F17: 0 | G17: 0 | H17: 0 | J17: 0 | K17: 0 | L17: =IF((E17<>$C17),(1-E17),$J17) -> 0 | M17: 0 | N17: 0 | O17: 0 | Q17: 0 | R17: 0 | S17: 0 | T17: 0 | U17: 0 | Y17: 0 | Z17: 0 | AA17: 0 | AB17: 0
A18: ='import DATA-CoP KSDW '!D10 -> 0 | B18: ='import DATA-CoP KSDW '!E10 -> 0 | C18: 0 | D18: 0 | E18: 0 | F18: 0 | G18: 0 | H18: 0 | J18: 0 | K18: 0 | L18: 0 | M18: 0 | N18: 0 | O18: 0 | Q18: 0 | R18: 0 | S18: 0 | T18: 0 | U18: 0 | Y18: 0 | Z18: 0 | AA18: 0 | AB18: 0
A19: ='import DATA-CoP KSDW '!D11 -> 0 | B19: ='import DATA-CoP KSDW '!E11 -> 0 | C19: 0 | D19: 0 | E19: 0 | F19: 0 | G19: 0 | H19: 0 | J19: 0 | K19: 0 | L19: 0 | M19: 0 | N19: 0 | O19: 0 | Q19: 0 | R19: 0 | S19: 0 | T19: 0 | U19: 0 | Y19: 0 | Z19: 0 | AA19: 0 | AB19: 0
A20: ='import DATA-CoP KSDW '!D12 -> 0 | B20: ='import DATA-CoP KSDW '!E12 -> 0 | C20: 0 | D20: 0 | E20: 0 | F20: 0 | G20: 0 | H20: 0 | J20: 0 | K20: 0 | L20: 0 | M20: 0 | N20: 0 | O20: 0 | Q20: 0 | R20: 0 | S20: 0 | T20: 0 | U20: 0 | Y20: 0 | Z20: 0 | AA20: 0 | AB20: 0
A21: ='import DATA-CoP KSDW '!D13 -> 0 | B21: ='import DATA-CoP KSDW '!E13 -> 0 | C21: 0 | D21: 0 | E21: 0 | F21: 0 | G21: 0 | H21: 0 | J21: 0 | K21: 0 | L21: 0 | M21: 0 | N21: 0 | O21: 0 | Q21: 0 | R21: 0 | S21: 0 | T21: 0 | U21: 0 | Y21: 0 | Z21: 0 | AA21: 0 | AB21: 0
A22: ='import DATA-CoP KSDW '!D14 -> 0 | B22: ='import DATA-CoP KSDW '!E14 -> 0 | C22: 0 | D22: 0 | E22: 0 | F22: 0 | G22: 0 | H22: 0 | J22: 0 | K22: 0 | L22: 0 | M22: 0 | N22: 0 | O22: 0 | Q22: 0 | R22: 0 | S22: 0 | T22: 0 | U22: 0 | Y22: 0 | Z22: 0 | AA22: 0 | AB22: 0
A23: ='import DATA-CoP KSDW '!D15 -> 0 | B23: ='import DATA-CoP KSDW '!E15 -> 0 | C23: 0 | D23: 0 | E23: 0 | F23: 0 | G23: 0 | H23: 0 | J23: 0 | K23: 0 | L23: 0 | M23: 0 | N23: 0 | O23: 0 | Q23: 0 | R23: 0 | S23: 0 | T23: 0 | U23: 0 | Y23: 0 | Z23: 0 | AA23: 0 | AB23: 0
A24: ='import DATA-CoP KSDW '!D16 -> 0 | B24: ='import DATA-CoP KSDW '!E16 -> 0 | C24: 0 | D24: 0 | E24: 0 | F24: 0 | G24: 0 | H24: 0 | J24: 0 | K24: 0 | L24: 0 | M24: 0 | N24: 0 | O24: 0 | Q24: 0 | R24: 0 | S24: 0 | T24: 0 | U24: 0 | Y24: 0 | Z24: 0 | AA24: 0 | AB24: 0
A25: ='import DATA-CoP KSDW '!D17 -> 0 | B25: ='import DATA-CoP KSDW '!E17 -> 0 | C25: 0 | D25: 0 | E25: 0 | F25: 0 | G25: 0 | H25: 0 | J25: 0 | K25: 0 | L25: 0 | M25: 0 | N25: 0 | O25: 0 | Q25: 0 | R25: 0 | S25: 0 | T25: 0 | U25: 0 | Y25: 0 | Z25: 0 | AA25: 0 | AB25: 0
A26: ='import DATA-CoP KSDW '!D18 -> 0 | B26: ='import DATA-CoP KSDW '!E18 -> 0 | D26: 0 | E26: 0 | F26: 0 | G26: 0 | H26: 0 | J26: 0 | K26: 0 | L26: 0 | M26: 0 | N26: 0 | O26: 0 | Q26: 0 | R26: 0 | S26: 0 | T26: 0 | U26: 0 | Y26: 0 | Z26: 0 | AA26: 0 | AB26: 0
A27: ='import DATA-CoP KSDW '!D19 -> 0 | B27: ='import DATA-CoP KSDW '!E19 -> 0 | D27: 0 | E27: 0 | F27: 0 | G27: 0 | H27: 0 | J27: 0 | K27: 0 | L27: 0 | M27: 0 | N27: 0 | O27: 0 | Q27: 0 | R27: 0 | S27: 0 | T27: 0 | U27: 0 | Y27: 0 | Z27: 0 | AA27: 0 | AB27: 0
A28: ='import DATA-CoP KSDW '!D20 -> 0 | B28: ='import DATA-CoP KSDW '!E20 -> 0 | D28: 0 | E28: 0 | F28: 0 | G28: 0 | H28: 0 | J28: 0 | K28: 0 | L28: 0 | M28: 0 | N28: 0 | O28: 0 | Q28: 0 | R28: 0 | S28: 0 | T28: 0 | U28: 0 | Y28: 0 | Z28: 0 | AA28: 0 | AB28: 0
A29: ='import DATA-CoP KSDW '!D21 -> 0 | B29: ='import DATA-CoP KSDW '!E21 -> 0 | D29: 0 | E29: 0 | F29: 0 | G29: 0 | H29: 0 | J29: 0 | K29: 0 | L29: 0 | M29: 0 | N29: 0 | O29: 0 | Q29: 0 | R29: 0 | S29: 0 | T29: 0 | U29: 0 | Y29: 0 | Z29: 0 | AA29: 0 | AB29: 0
A30: ='import DATA-CoP KSDW '!D22 -> 0 | B30: ='import DATA-CoP KSDW '!E22 -> 0 | D30: 0 | E30: 0 | F30: 0 | G30: 0 | H30: 0 | J30: 0 | K30: 0 | L30: 0 | M30: 0 | N30: 0 | O30: 0 | Q30: 0 | R30: 0 | S30: 0 | T30: 0 | U30: 0 | Y30: 0 | Z30: =IF($A30=0,0,Z$4) -> 0 | AA30: 0 | AB30: 0
A31: ='import DATA-CoP KSDW '!D23 -> 0 | B31: ='import DATA-CoP KSDW '!E23 -> 0 | D31: 0 | E31: 0 | F31: 0 | G31: 0 | H31: 0 | J31: 0 | K31: 0 | L31: 0 | M31: 0 | N31: 0 | O31: 0 | Q31: 0 | R31: 0 | S31: 0 | T31: 0 | U31: 0 | Y31: 0 | Z31: 0 | AA31: 0 | AB31: 0
A32: ='import DATA-CoP KSDW '!D24 -> 0 | B32: ='import DATA-CoP KSDW '!E24 -> 0 | D32: 0 | E32: 0 | F32: 0 | G32: 0 | H32: 0 | J32: 0 | K32: 0 | L32: 0 | M32: 0 | N32: 0 | O32: 0 | Q32: 0 | R32: 0 | S32: 0 | T32: 0 | U32: 0 | Y32: 0 | Z32: 0 | AA32: 0 | AB32: 0
A33: ='import DATA-CoP KSDW '!D25 -> 0 | B33: ='import DATA-CoP KSDW '!E25 -> 0 | D33: 0 | E33: 0 | F33: 0 | G33: 0 | H33: 0 | J33: 0 | K33: 0 | L33: 0 | M33: 0 | N33: 0 | O33: 0 | Q33: 0 | R33: 0 | S33: 0 | T33: 0 | U33: 0 | Y33: 0 | Z33: 0 | AA33: 0 | AB33: 0
A34: ='import DATA-CoP KSDW '!D26 -> 0 | B34: ='import DATA-CoP KSDW '!E26 -> 0 | D34: 0 | E34: 0 | F34: 0 | G34: 0 | H34: 0 | J34: 0 | K34: 0 | L34: 0 | M34: 0 | N34: 0 | O34: 0 | Q34: 0 | R34: 0 | S34: 0 | T34: 0 | U34: 0 | Y34: 0 | Z34: 0 | AA34: 0 | AB34: 0

Sheet C Begrotingsblad
A1: RAMINGSOVERZICHT
A2: Projectnummer: | D2: Prijspeil: | F2: ='import Alg. uitgangspunten KSDW'!B5 -> 00:00:00
A3: Projectomschrijving: | D3: Datum:
A4: Project fase: | D4: Opgesteld door:
D5: Versie:
B8: NIEUWBOUW | D8: RENOVATIE | F8: TOTAAL
B9: GEDEELTE | D9: GEDEELTE | F9: NW+RENOVATIE
B10: KSDW+aanpassing | D10: KSDW+aanpassing | F10: KSDW+aanpassing
A11: Omschrijving
A12: Totaal bouwkosten Civiel+Bouwk (+vul mat+ alg voorz.) | B12: =IF('E Rekenblad'!$V$68=0,0,'E Rekenblad'!N$30*(1+'E Rekenblad'!$U$5)) -> 0 | D12: =IF('E Rekenblad'!$AF$68=0,0,'E Rekenblad'!X$30*(1+'E Rekenblad'!$AE$5)) -> 0 | F12: =ROUND(B12+D12,-3) -> 0
A13: Totaal bouwkosten Werktuigbouwkunde | B13: =IF('E Rekenblad'!$V$68=0,0,'E Rekenblad'!O$30*(1+'E Rekenblad'!$U$5)) -> 0 | D13: =IF('E Rekenblad'!$AF$68=0,0,'E Rekenblad'!Y$30*(1+'E Rekenblad'!$AE$5)) -> 0 | F13: =ROUND(B13+D13,-3) -> 0
A14: Totaal bouwkosten Elektro & Instrumentatie | B14: =IF('E Rekenblad'!$V$68=0,0,'E Rekenblad'!P$30*(1+'E Rekenblad'!$U$5)) -> 0 | D14: =IF('E Rekenblad'!$AF$68=0,0,'E Rekenblad'!Z$30*(1+'E Rekenblad'!$AE$5)) -> 0 | F14: 0
A15: Totaal bouwkosten Proces Automatisering | B15: =IF('E Rekenblad'!$V$68=0,0,'E Rekenblad'!Q$30*(1+'E Rekenblad'!$U$5)) -> 0 | D15: =IF('E Rekenblad'!$AF$68=0,0,'E Rekenblad'!AA$30*(1+'E Rekenblad'!$AE$5)) -> 0 | F15: 0
A16: Totaal vulmaterialen | B16: =IF('E Rekenblad'!$V$68=0,0,'E Rekenblad'!R$30*(1+'E Rekenblad'!$U$5)) -> 0 | D16: =IF('E Rekenblad'!$AF$68=0,0,'E Rekenblad'!AB$30*(1+'E Rekenblad'!$AE$5)) -> 0 | F16: 0
A17: Totaal algemene voorzieningen | B17: =IF('E Rekenblad'!$V$68=0,0,'E Rekenblad'!S$30*(1+'E Rekenblad'!$U$5)) -> 0 | D17: =IF('E Rekenblad'!$AF$68=0,0,'E Rekenblad'!AC$30*(1+'E Rekenblad'!$AE$5)) -> 0 | F17: 0
A19: SUBTOTAAL BOUWKOSTEN | B19: =SUM(B12:B18) -> 0 | D19: =SUM(D12:D18) -> 0 | F19: =SUM(F12:F18) -> 0
A21: Extra bouwkosten door
A22: ='E Rekenblad'!B36 -> Duurzame materialen / circulair bouwen | B22: ='E Rekenblad'!V36 -> 0 | D22: ='E Rekenblad'!AF36 -> 0 | F22: =ROUND(B22+D22,-3) -> 0
A23: ='E Rekenblad'!B37 -> Elektrisch werken (emissieloos bouwen) | B23: ='E Rekenblad'!V37 -> 0 | D23: ='E Rekenblad'!AF37 -> 0 | F23: 0
A24: ='E Rekenblad'!B38 -> Volledig onafhankelijke straten (keuzelijst) | B24: ='E Rekenblad'!V38 -> 0 | D24: ='E Rekenblad'!AF38 -> 0 | F24: 0
A25: ='E Rekenblad'!B39 -> Extra kosten standaardisatie | B25: ='E Rekenblad'!V39 -> 0 | D25: ='E Rekenblad'!AF39 -> 0 | F25: 0
A26: ='E Rekenblad'!B40 -> Extra kosten langere BOUWTIJD t.o.v. normaal | B26: ='E Rekenblad'!V40 -> 0 | D26: ='E Rekenblad'!AF40 -> 0 | F26: 0
A27: ='E Rekenblad'!B41 -> Object overstijgende Risicoreservering scope change | B27: ='E Rekenblad'!V41 -> 0 | D27: ='E Rekenblad'!AF41 -> 0 | F27: 0
A28: ='E Rekenblad'!B42 -> Nader te detailleren | B28: ='E Rekenblad'!V42 -> 0 | D28: ='E Rekenblad'!AF42 -> 0
A30: TOTAAL BOUWKOSTEN | B30: =SUM(B19:B28) -> 0 | D30: =SUM(D19:D28) -> 0 | F30: =SUM(F19:F28) -> 0
A33: TOTAAL VASTGOEDKOSTEN | B33: ='E Rekenblad'!V51 -> 0 | D33: ='E Rekenblad'!AF51 -> 0 | F33: =ROUND(B33+D33,-3) -> 0
A36: ='E Rekenblad'!B56 -> Engineeringskosten IB (incl onderzoeken/adv) | B36: ='E Rekenblad'!V56 -> 0 | D36: ='E Rekenblad'!AF56 -> 0 | F36: =ROUND(B36+D36,-3) -> 0
A37: ='E Rekenblad'!B57 -> Engineeringskosten OG (interne uren) | B37: ='E Rekenblad'!V57 -> 0 | D37: ='E Rekenblad'!AF57 -> 0 | F37: 0
A38: ='E Rekenblad'!B58 -> Totaal Engineerinskosten (OG+IB) | B38: ='E Rekenblad'!V58 -> 0 | D38: ='E Rekenblad'!AF58 -> 0 | F38: 0
A41: ='E Rekenblad'!B62 -> Overige bijkomende kosten | B41: ='E Rekenblad'!V62 -> 0 | D41: ='E Rekenblad'!AF62 -> 0 | F41: =ROUND(B41+D41,-3) -> 0
A44: ='E Rekenblad'!B65 -> Object overstijgende Risicoreservering | B44: ='E Rekenblad'!V65 -> 0 | D44: ='E Rekenblad'!AF65 -> 0 | F44: =ROUND(B44+D44,-3) -> 0
A48: ='E Rekenblad'!B68 -> Totaal investeringskosten | B48: =B30+B38+B41+B44 -> 0 | D48: =D30+D38+D41+D44 -> 0 | F48: =F30+F38+F41+F44 -> 0
A51: Percentage onnauwkeurigheid | B51: 0.35 | D51: 0.5 | F51: =F52/F48 -> 
A52: Onnauwkeurigheid | B52: =ROUND(B48*B51,-5) -> 0 | D52: =ROUND(D48*D51,-5) -> 0 | F52: =ROUND(B52+D52,-3) -> 0
A53: Ondergrens | B53: =ROUND(B48-B52,-5) -> 0 | D53: =ROUND(D48-D52,-5) -> 0 | F53: =ROUND(F48-F52,-5) -> 0
A54: Bovengrens | B54: =ROUND(B48+B52,-5) -> 0 | D54: =ROUND(D48+D53,-5) -> 0 | F54: =ROUND(F48+F52,-5) -> 0
A59: ='E Rekenblad'!B73 -> Sloopkosten | F59: ='E Rekenblad'!AP73 -> 0

Sheet D Presentatie+grafieken
A3: 1 | B3: Bouwkosten per processtap (inclusief indirecte bouwkosten, exclusief toeslagen)
A4: Totaal BK bij 100% nieuwbouw | B4: Processtap | C4: Deel Nieuwbouw BK | D4: Deel Renovatie BK | E4: Totaal (Deel nieuwbouw BK + Deel Renovatie BK)
A5: ='E Rekenblad'!L9 -> 0 | B5: ='E Rekenblad'!B9 -> 0 | C5: ='E Rekenblad'!V9 -> 0 | D5: ='E Rekenblad'!AF9 -> 0 | E5: ='E Rekenblad'!AP9 -> 0
A6: ='E Rekenblad'!L10 -> 0 | B6: ='E Rekenblad'!B10 -> 0 | C6: ='E Rekenblad'!V10 -> 0 | D6: ='E Rekenblad'!AF10 -> 0 | E6: ='E Rekenblad'!AP10 -> 0
A7: ='E Rekenblad'!L11 -> 0 | B7: ='E Rekenblad'!B11 -> 0 | C7: ='E Rekenblad'!V11 -> 0 | D7: ='E Rekenblad'!AF11 -> 0 | E7: ='E Rekenblad'!AP11 -> 0
A8: ='E Rekenblad'!L12 -> 0 | B8: ='E Rekenblad'!B12 -> 0 | C8: ='E Rekenblad'!V12 -> 0 | D8: ='E Rekenblad'!AF12 -> 0 | E8: ='E Rekenblad'!AP12 -> 0
A9: ='E Rekenblad'!L13 -> 0 | B9: ='E Rekenblad'!B13 -> 0 | C9: ='E Rekenblad'!V13 -> 0 | D9: ='E Rekenblad'!AF13 -> 0 | E9: ='E Rekenblad'!AP13 -> 0
A10: ='E Rekenblad'!L14 -> 0 | B10: ='E Rekenblad'!B14 -> 0 | C10: ='E Rekenblad'!V14 -> 0 | D10: ='E Rekenblad'!AF14 -> 0 | E10: ='E Rekenblad'!AP14 -> 0
A11: ='E Rekenblad'!L15 -> 0 | B11: ='E Rekenblad'!B15 -> 0 | C11: ='E Rekenblad'!V15 -> 0 | D11: ='E Rekenblad'!AF15 -> 0 | E11: ='E Rekenblad'!AP15 -> 0
A12: ='E Rekenblad'!L16 -> 0 | B12: ='E Rekenblad'!B16 -> 0 | C12: ='E Rekenblad'!V16 -> 0 | D12: ='E Rekenblad'!AF16 -> 0 | E12: ='E Rekenblad'!AP16 -> 0
A13: ='E Rekenblad'!L17 -> 0 | B13: ='E Rekenblad'!B17 -> 0 | C13: ='E Rekenblad'!V17 -> 0 | D13: ='E Rekenblad'!AF17 -> 0 | E13: ='E Rekenblad'!AP17 -> 0
A14: ='E Rekenblad'!L18 -> 0 | B14: ='E Rekenblad'!B18 -> 0 | C14: ='E Rekenblad'!V18 -> 0 | D14: ='E Rekenblad'!AF18 -> 0 | E14: ='E Rekenblad'!AP18 -> 0
A15: ='E Rekenblad'!L19 -> 0 | B15: ='E Rekenblad'!B19 -> 0 | C15: ='E Rekenblad'!V19 -> 0 | D15: ='E Rekenblad'!AF19 -> 0 | E15: ='E Rekenblad'!AP19 -> 0
A16: ='E Rekenblad'!L20 -> 0 | B16: ='E Rekenblad'!B20 -> 0 | C16: ='E Rekenblad'!V20 -> 0 | D16: ='E Rekenblad'!AF20 -> 0 | E16: ='E Rekenblad'!AP20 -> 0
A17: ='E Rekenblad'!L21 -> 0 | B17: ='E Rekenblad'!B21 -> 0 | C17: ='E Rekenblad'!V21 -> 0 | D17: ='E Rekenblad'!AF21 -> 0 | E17: ='E Rekenblad'!AP21 -> 0
A18: ='E Rekenblad'!L22 -> 0 | B18: ='E Rekenblad'!B22 -> 0 | C18: ='E Rekenblad'!V22 -> 0 | D18: ='E Rekenblad'!AF22 -> 0 | E18: ='E Rekenblad'!AP22 -> 0
A19: ='E Rekenblad'!L23 -> 0 | B19: ='E Rekenblad'!B23 -> 0 | C19: ='E Rekenblad'!V23 -> 0 | D19: ='E Rekenblad'!AF23 -> 0 | E19: ='E Rekenblad'!AP23 -> 0
A35: 2 | B35: Bouwkosten per discipline (inclusief indirecte bouwkosten, exclusief toeslagen)
A36: =A4 -> Totaal BK bij 100% nieuwbouw | B36: Discipline | C36: Deel Nieuwbouw BK | D36: =D4 -> Deel Renovatie BK | E36: Totaal (Deel nieuwbouw BK + Deel Renovatie BK)
A37: ='E Rekenblad'!D30 -> 0 | B37: ='E Rekenblad'!D7 -> CTB | C37: ='E Rekenblad'!N30 -> 0 | D37: ='E Rekenblad'!X30 -> 0 | E37: =C37+D37 -> 0
A38: ='E Rekenblad'!E30 -> 0 | B38: ='E Rekenblad'!E7 -> WTB | C38: ='E Rekenblad'!O30 -> 0 | D38: ='E Rekenblad'!Y30 -> 0 | E38: =C38+D38 -> 0
A39: ='E Rekenblad'!F30 -> 0 | B39: ='E Rekenblad'!F7 -> E & I | C39: ='E Rekenblad'!P30 -> 0 | D39: ='E Rekenblad'!Z30 -> 0 | E39: 0
A40: ='E Rekenblad'!G30 -> 0 | B40: ='E Rekenblad'!G7 -> PA | C40: ='E Rekenblad'!Q30 -> 0 | D40: ='E Rekenblad'!AA30 -> 0 | E40: 0
A41: ='E Rekenblad'!I30 -> 0 | B41: ='E Rekenblad'!I7 -> Alg. Voorzieningen | C41: ='E Rekenblad'!S30+'E Rekenblad'!R30 -> 0 | D41: ='E Rekenblad'!AC30+'E Rekenblad'!AB30 -> 0 | E41: 0
A42: ='E Rekenblad'!J30 -> 0 | B42: ='E Rekenblad'!J7 -> Totaal | C42: ='E Rekenblad'!T30 -> 0 | D42: ='E Rekenblad'!AD30 -> 0 | E42: 0
A43: ='E Rekenblad'!K30 -> 0 | B43: ='E Rekenblad'!K7 -> Indirecte BK | C43: ='E Rekenblad'!U30 -> 0 | D43: ='E Rekenblad'!AE30 -> 0 | E43: 0
A53: 3 | B53: Investeringskosten (totale kosten)
A54: Totale kosten bij 100% nieuwbouw | B54: Investeringskosten (nw/ ren) | C54: Deel Nieuwbouw BK | D54: Deel Renovatie BK | E54: Totaal (Deel nieuwbouw BK + Deel Renovatie BK)
A55: ='E Rekenblad'!L30 -> 0 | B55: Totaal voorziene BK | C55: ='E Rekenblad'!V30 -> 0 | D55: ='E Rekenblad'!AF30 -> 0 | E55: =ROUND(C55+D55,-5) -> 0
A56: ='E Rekenblad'!L43 -> 0 | B56: ='E Rekenblad'!Z45 -> Toeslagen BK | C56: ='E Rekenblad'!V43 -> 0 | D56: ='E Rekenblad'!AF43 -> 0 | E56: 0
A57: ='E Rekenblad'!L58 -> 0 | B57: ='E Rekenblad'!N58 -> Totaal Engineerinskosten (OG+IB) | C57: ='E Rekenblad'!V58 -> 0 | D57: ='E Rekenblad'!AF58 -> 0 | E57: 0
A58: ='E Rekenblad'!L62 -> 0 | B58: ='E Rekenblad'!B62 -> Overige bijkomende kosten | C58: ='E Rekenblad'!V62 -> 0 | D58: ='E Rekenblad'!AF62 -> 0 | E58: 0
A59: ='E Rekenblad'!L65 -> 0 | B59: ='E Rekenblad'!B65 -> Object overstijgende Risicoreservering | C59: ='E Rekenblad'!V65 -> 0 | D59: ='E Rekenblad'!AF65 -> 0 | E59: 0
B60: ='E Rekenblad'!N68 -> Totaal investeringskosten | C60: ='E Rekenblad'!V68 -> 0 | D60: ='E Rekenblad'!AF68 -> 0 | E60: 0
A79: 4 | B79: Toeslagen per onderwerp
A80: Totaal BK bij 100% nieuwbouw | B80: Toeslagen per onderwerp | C80: Deel Nieuwbouw BK | D80: Deel Renovatie BK | E80: Totaal (Deel nieuwbouw BK + Deel Renovatie BK)
A81: ='E Rekenblad'!L36 -> 0 | B81: ='E Rekenblad'!B36 -> Duurzame materialen / circulair bouwen | C81: ='E Rekenblad'!V36 -> 0 | D81: ='E Rekenblad'!AF36 -> 0 | E81: ='E Rekenblad'!AP36 -> 0
A82: ='E Rekenblad'!L37 -> 0 | B82: ='E Rekenblad'!B37 -> Elektrisch werken (emissieloos bouwen) | C82: ='E Rekenblad'!V37 -> 0 | D82: ='E Rekenblad'!AF37 -> 0 | E82: ='E Rekenblad'!AP37 -> 0
A83: ='E Rekenblad'!L38 -> 0 | B83: ='E Rekenblad'!B38 -> Volledig onafhankelijke straten (keuzelijst) | C83: ='E Rekenblad'!V38 -> 0 | D83: ='E Rekenblad'!AF38 -> 0 | E83: ='E Rekenblad'!AP38 -> 0
A84: ='E Rekenblad'!L39 -> 0 | B84: ='E Rekenblad'!B39 -> Extra kosten standaardisatie | C84: ='E Rekenblad'!V39 -> 0 | D84: ='E Rekenblad'!AF39 -> 0 | E84: ='E Rekenblad'!AP39 -> 0
A85: ='E Rekenblad'!L40 -> 0 | B85: ='E Rekenblad'!B40 -> Extra kosten langere BOUWTIJD t.o.v. normaal | C85: ='E Rekenblad'!V40 -> 0 | D85: ='E Rekenblad'!AF40 -> 0 | E85: ='E Rekenblad'!AP40 -> 0
A86: ='E Rekenblad'!L41 -> 0 | B86: ='E Rekenblad'!B41 -> Object overstijgende Risicoreservering scope change | C86: ='E Rekenblad'!V41 -> 0 | D86: ='E Rekenblad'!AF41 -> 0 | E86: ='E Rekenblad'!AP41 -> 0
A87: ='E Rekenblad'!L42 -> 0 | B87: ='E Rekenblad'!B42 -> Nader te detailleren | C87: ='E Rekenblad'!V42 -> 0 | D87: ='E Rekenblad'!AF42 -> 0 | E87: ='E Rekenblad'!AP42 -> 0 | F87: Regel verwijderen als niet van toepassing
A97: 5 | B97: Toeslagen per discipline
A98: Totaal Bouwkosten bij 100% nieuwbouw | C98: Deel Nieuwbouw BK | D98: Renovatie BK | E98: Totaal (Deel nieuwbouw BK + Deel Renovatie BK)
A99: ='E Rekenblad'!D43 -> 0 | B99: ='E Rekenblad'!X35 -> CTB | C99: ='E Rekenblad'!N43 -> 0 | D99: ='E Rekenblad'!X43 -> 0 | E99: ='E Rekenblad'!AH43 -> 0
A100: ='E Rekenblad'!E43 -> 0 | B100: ='E Rekenblad'!Y35 -> WTB | C100: ='E Rekenblad'!O43 -> 0 | D100: ='E Rekenblad'!Y43 -> 0 | E100: ='E Rekenblad'!AI43 -> 0
A101: ='E Rekenblad'!F43 -> 0 | B101: ='E Rekenblad'!Z35 -> E & I | C101: ='E Rekenblad'!P43 -> 0 | D101: ='E Rekenblad'!Z43 -> 0 | E101: ='E Rekenblad'!AJ43 -> 0
A102: ='E Rekenblad'!G43 -> 0 | B102: ='E Rekenblad'!AA35 -> PA | C102: ='E Rekenblad'!Q43 -> 0 | D102: ='E Rekenblad'!AA43 -> 0 | E102: ='E Rekenblad'!AK43 -> 0
A111: 6 | B111: Projectkosten
A112: Totaal projectkosten bij 100% nieuwbouw | C112: Deel Nieuwbouw BK | D112: Renovatie BK | E112: Totaal (Deel nieuwbouw BK + Deel Renovatie BK)
A113: ='E Rekenblad'!L56 -> 0 | B113: ='E Rekenblad'!X56 -> Engineeringskosten IB (incl onderzoeken/adv) | C113: ='E Rekenblad'!V56 -> 0 | D113: ='E Rekenblad'!AF56 -> 0 | E113: ='E Rekenblad'!AP56 -> 0
A114: ='E Rekenblad'!L57 -> 0 | B114: ='E Rekenblad'!X57 -> Totaal interne uren | C114: ='E Rekenblad'!V57 -> 0 | D114: ='E Rekenblad'!AF57 -> 0 | E114: ='E Rekenblad'!AP57 -> 0

Sheet E Rekenblad
D3: NIEUWBOUW uit kostenstandaard | J3: EXPORT KSDW | N3: DEEL NIEUWBOUW | T3: DEEL NIEUWBOUW | X3: DEEL RENOVATIE | AD3: DEEL RENOVATIE | AH3: TOTAAL PROJECT | AN3: TOTAAL PROJECT
K5: =K30/J30 ->  | U5: =U30/T30 ->  | AE5: =AE30/AD30 ->  | AO5: =AO30/AN30 -> 
D6: Nieuw (bouwkosten) uit kostenstandaard | L6: Totaal | N6: Nieuw (bouwkosten) uit kostenstandaard | V6: Totaal | X6: Renovatie- (bouwkosten)(omgerekend o.b.v. KSDW) | AF6: Totaal | AH6: Totaal Bouwkosten (deel nieuw + deel renovatie) | AP6: Totaal
D7: CTB | E7: WTB | F7: E & I | G7: PA | H7: Vulmaterialen | I7: Alg. Voorzieningen | J7: Totaal | K7: Indirecte BK | L7: Bouwkosten (nieuwbouw) | N7: CTB | O7: WTB | P7: E & I | Q7: PA | R7: Vul materialen | S7: Alg. Voorzieningen | T7: Totaal | U7: Indirecte BK | V7: Bouwkosten (DEEL NIEUWBOUW) | X7: CTB | Y7: WTB | Z7: E & I | AA7: PA | AB7: Vul materialen | AC7: Alg. Voorzieningen | AD7: Totaal | AE7: Indirecte BK | AF7: Bouwkosten (DEEL RENOVATIE) | AH7: CTB | AI7: WTB | AJ7: E & I | AK7: PA | AL7: Vul materialen | AM7: Alg.voorz. | AN7: Totaal | AO7: Indirecte BK | AP7: Bouwkosten (TOTAAL PROJECT)
B8: Processtapbenaming | D8: Directe BK | E8: =$D$8 -> Directe BK | F8: =$D$8 -> Directe BK | G8: =$D$8 -> Directe BK | H8: Directe BK | I8: Directe BK | J8: Directe BK | K8: Indirecte BK | L8: Totale VBK | N8: Directe BK | O8: =$D$8 -> Directe BK | P8: =$D$8 -> Directe BK | Q8: =$D$8 -> Directe BK | R8: Directe BK | S8: Directe BK | T8: Directe BK | U8: Indirecte BK | V8: Totale VBK | X8: =$D$8 -> Directe BK | Y8: =$D$8 -> Directe BK | Z8: Directe BK | AA8: Directe BK | AB8: Directe BK | AC8: Directe BK | AD8: Directe BK | AE8: =K8 -> Indirecte BK | AF8: =D8 -> Directe BK | AH8: =$D$8 -> Directe BK | AI8: =$D$8 -> Directe BK | AJ8: Directe BK | AK8: Directe BK | AL8: Directe BK | AM8: Directe BK | AN8: Directe BK | AO8: =U8 -> Indirecte BK | AP8: =N8 -> Directe BK
A9: =IF(B9="Infra",27,'import DATA-CoP KSDW '!D6) -> 0 | B9: ='import DATA-CoP KSDW '!E6 -> 0 | D9: =('import DATA-CoP KSDW '!$O6)/(1+'A Scope parameters'!X$3) -> 0 | E9: ='import DATA-CoP KSDW '!Q6/(1+'A Scope parameters'!X$4) -> 0 | F9: ='import DATA-CoP KSDW '!S6/(1+'A Scope parameters'!X$5) -> 0 | G9: ='import DATA-CoP KSDW '!U6/(1+'A Scope parameters'!X$6) -> 0 | H9: ='import DATA-CoP KSDW '!V6/(1+'A Scope parameters'!X$3) -> 0 | I9: =IF(A9=27,0,(SUM(D9:G9)+H9)*(('import DATA-CoP KSDW '!W$5+'import DATA-CoP KSDW '!X$5+'import DATA-CoP KSDW '!Y$5)/100)) -> 0 | J9: =SUM(D9:I9) -> 0 | K9: ='A Scope parameters'!C$3*D9+'A Scope parameters'!C$4*E9+'A Scope parameters'!C$5*F9+'A Scope parameters'!C$6*G9+'A Scope parameters'!C$3*(H9+I9) -> 0 | L9: =J9+K9 -> 0 | N9: =D9*'B Nw en Renovatie parameters'!D14 -> 0 | O9: =E9*'B Nw en Renovatie parameters'!E14 -> 0 | P9: =F9*'B Nw en Renovatie parameters'!F14 -> 0 | Q9: =G9*'B Nw en Renovatie parameters'!G14 -> 0 | R9: =H9*'B Nw en Renovatie parameters'!H14 -> 0 | S9: =IF(A9=27,0,IF(A9=0,0,I9*SUM(N9:R9)/SUM(D9:H9))) -> 0 | T9: =SUM(N9:S9) -> 0 | U9: ='A Scope parameters'!C$3*N9+'A Scope parameters'!C$4*O9+'A Scope parameters'!C$5*P9+'A Scope parameters'!C$6*Q9+'A Scope parameters'!C$3*(R9+S9) -> 0 | V9: =T9+U9 -> 0 | X9: =D9*'B Nw en Renovatie parameters'!K14*(1+'B Nw en Renovatie parameters'!Y14) -> 0 | Y9: =E9*'B Nw en Renovatie parameters'!L14*(1+'B Nw en Renovatie parameters'!Z14) -> 0 | Z9: =F9*'B Nw en Renovatie parameters'!M14*(1+'B Nw en Renovatie parameters'!AA14) -> 0 | AA9: =G9*'B Nw en Renovatie parameters'!N14*(1+'B Nw en Renovatie parameters'!AB14) -> 0 | AB9: =H9*'B Nw en Renovatie parameters'!O14 -> 0 | AC9: =IF(A9=27,0,IF(A9=0,0,I9*SUM(X9:AB9)/SUM(D9:H9))) -> 0 | AD9: =SUM(X9:AC9) -> 0 | AE9: ='A Scope parameters'!C$3*X9+'A Scope parameters'!C$4*Y9+'A Scope parameters'!C$5*Z9+'A Scope parameters'!C$6*AA9+'A Scope parameters'!C$3*(AB9+AC9) -> 0 | AF9: =AD9+AE9 -> 0 | AH9: =N9+X9 -> 0 | AI9: =O9+Y9 -> 0 | AJ9: =P9+Z9 -> 0 | AK9: =Q9+AA9 -> 0 | AL9: =R9+AB9 -> 0 | AM9: =S9+AC9 -> 0 | AN9: =T9+AD9 -> 0 | AO9: =U9+AE9 -> 0 | AP9: =V9+AF9 -> 0
A10: =IF(B10="Infra",27,'import DATA-CoP KSDW '!D7) -> 0 | B10: ='import DATA-CoP KSDW '!E7 -> 0 | D10: =('import DATA-CoP KSDW '!$O7)/(1+'A Scope parameters'!X$3) -> 0 | E10: ='import DATA-CoP KSDW '!Q7/(1+'A Scope parameters'!X$4) -> 0 | F10: ='import DATA-CoP KSDW '!S7/(1+'A Scope parameters'!X$5) -> 0 | G10: ='import DATA-CoP KSDW '!U7/(1+'A Scope parameters'!X$6) -> 0 | H10: ='import DATA-CoP KSDW '!V7/(1+'A Scope parameters'!X$3) -> 0 | I10: =IF(A10=27,0,(SUM(D10:G10)+H10)*(('import DATA-CoP KSDW '!W$5+'import DATA-CoP KSDW '!X$5+'import DATA-CoP KSDW '!Y$5)/100)) -> 0 | J10: 0 | K10: ='A Scope parameters'!C$3*D10+'A Scope parameters'!C$4*E10+'A Scope parameters'!C$5*F10+'A Scope parameters'!C$6*G10+'A Scope parameters'!C$3*(H10+I10) -> 0 | L10: 0 | N10: =D10*'B Nw en Renovatie parameters'!D15 -> 0 | O10: =E10*'B Nw en Renovatie parameters'!E15 -> 0 | P10: =F10*'B Nw en Renovatie parameters'!F15 -> 0 | Q10: =G10*'B Nw en Renovatie parameters'!G15 -> 0 | R10: =H10*'B Nw en Renovatie parameters'!H15 -> 0 | S10: 0 | T10: 0 | U10: ='A Scope parameters'!C$3*N10+'A Scope parameters'!C$4*O10+'A Scope parameters'!C$5*P10+'A Scope parameters'!C$6*Q10+'A Scope parameters'!C$3*(R10+S10) -> 0 | V10: 0 | X10: =D10*'B Nw en Renovatie parameters'!K15*(1+'B Nw en Renovatie parameters'!Y15) -> 0 | Y10: =E10*'B Nw en Renovatie parameters'!L15*(1+'B Nw en Renovatie parameters'!Z15) -> 0 | Z10: =F10*'B Nw en Renovatie parameters'!M15*(1+'B Nw en Renovatie parameters'!AA15) -> 0 | AA10: =G10*'B Nw en Renovatie parameters'!N15*(1+'B Nw en Renovatie parameters'!AB15) -> 0 | AB10: =H10*'B Nw en Renovatie parameters'!O15 -> 0 | AC10: 0 | AD10: =SUM(X10:AC10) -> 0 | AE10: ='A Scope parameters'!C$3*X10+'A Scope parameters'!C$4*Y10+'A Scope parameters'!C$5*Z10+'A Scope parameters'!C$6*AA10+'A Scope parameters'!C$3*(AB10+AC10) -> 0 | AF10: =AD10+AE10 -> 0 | AH10: 0 | AI10: 0 | AJ10: 0 | AK10: 0 | AL10: 0 | AM10: 0 | AN10: 0 | AO10: 0 | AP10: 0
A11: =IF(B11="Infra",27,'import DATA-CoP KSDW '!D8) -> 0 | B11: ='import DATA-CoP KSDW '!E8 -> 0 | D11: =('import DATA-CoP KSDW '!$O8)/(1+'A Scope parameters'!X$3) -> 0 | E11: ='import DATA-CoP KSDW '!Q8/(1+'A Scope parameters'!X$4) -> 0 | F11: ='import DATA-CoP KSDW '!S8/(1+'A Scope parameters'!X$5) -> 0 | G11: ='import DATA-CoP KSDW '!U8/(1+'A Scope parameters'!X$6) -> 0 | H11: ='import DATA-CoP KSDW '!V8/(1+'A Scope parameters'!X$3) -> 0 | I11: =IF(A11=27,0,(SUM(D11:G11)+H11)*(('import DATA-CoP KSDW '!W$5+'import DATA-CoP KSDW '!X$5+'import DATA-CoP KSDW '!Y$5)/100)) -> 0 | J11: 0 | K11: ='A Scope parameters'!C$3*D11+'A Scope parameters'!C$4*E11+'A Scope parameters'!C$5*F11+'A Scope parameters'!C$6*G11+'A Scope parameters'!C$3*(H11+I11) -> 0 | L11: 0 | N11: =D11*'B Nw en Renovatie parameters'!D16 -> 0 | O11: =E11*'B Nw en Renovatie parameters'!E16 -> 0 | P11: =F11*'B Nw en Renovatie parameters'!F16 -> 0 | Q11: =G11*'B Nw en Renovatie parameters'!G16 -> 0 | R11: =H11*'B Nw en Renovatie parameters'!H16 -> 0 | S11: 0 | T11: 0 | U11: ='A Scope parameters'!C$3*N11+'A Scope parameters'!C$4*O11+'A Scope parameters'!C$5*P11+'A Scope parameters'!C$6*Q11+'A Scope parameters'!C$3*(R11+S11) -> 0 | V11: 0 | X11: =D11*'B Nw en Renovatie parameters'!K16*(1+'B Nw en Renovatie parameters'!Y16) -> 0 | Y11: =E11*'B Nw en Renovatie parameters'!L16*(1+'B Nw en Renovatie parameters'!Z16) -> 0 | Z11: =F11*'B Nw en Renovatie parameters'!M16*(1+'B Nw en Renovatie parameters'!AA16) -> 0 | AA11: =G11*'B Nw en Renovatie parameters'!N16*(1+'B Nw en Renovatie parameters'!AB16) -> 0 | AB11: =H11*'B Nw en Renovatie parameters'!O16 -> 0 | AC11: 0 | AD11: 0 | AE11: ='A Scope parameters'!C$3*X11+'A Scope parameters'!C$4*Y11+'A Scope parameters'!C$5*Z11+'A Scope parameters'!C$6*AA11+'A Scope parameters'!C$3*(AB11+AC11) -> 0 | AF11: 0 | AH11: 0 | AI11: 0 | AJ11: 0 | AK11: 0 | AL11: 0 | AM11: 0 | AN11: 0 | AO11: 0 | AP11: 0
A12: =IF(B12="Infra",27,'import DATA-CoP KSDW '!D9) -> 0 | B12: ='import DATA-CoP KSDW '!E9 -> 0 | D12: =('import DATA-CoP KSDW '!$O9)/(1+'A Scope parameters'!X$3) -> 0 | E12: ='import DATA-CoP KSDW '!Q9/(1+'A Scope parameters'!X$4) -> 0 | F12: ='import DATA-CoP KSDW '!S9/(1+'A Scope parameters'!X$5) -> 0 | G12: ='import DATA-CoP KSDW '!U9/(1+'A Scope parameters'!X$6) -> 0 | H12: ='import DATA-CoP KSDW '!V9/(1+'A Scope parameters'!X$3) -> 0 | I12: =IF(A12=27,0,(SUM(D12:G12)+H12)*(('import DATA-CoP KSDW '!W$5+'import DATA-CoP KSDW '!X$5+'import DATA-CoP KSDW '!Y$5)/100)) -> 0 | J12: 0 | K12: ='A Scope parameters'!C$3*D12+'A Scope parameters'!C$4*E12+'A Scope parameters'!C$5*F12+'A Scope parameters'!C$6*G12+'A Scope parameters'!C$3*(H12+I12) -> 0 | L12: 0 | N12: =D12*'B Nw en Renovatie parameters'!D17 -> 0 | O12: =E12*'B Nw en Renovatie parameters'!E17 -> 0 | P12: =F12*'B Nw en Renovatie parameters'!F17 -> 0 | Q12: =G12*'B Nw en Renovatie parameters'!G17 -> 0 | R12: =H12*'B Nw en Renovatie parameters'!H17 -> 0 | S12: 0 | T12: 0 | U12: ='A Scope parameters'!C$3*N12+'A Scope parameters'!C$4*O12+'A Scope parameters'!C$5*P12+'A Scope parameters'!C$6*Q12+'A Scope parameters'!C$3*(R12+S12) -> 0 | V12: 0 | X12: =D12*'B Nw en Renovatie parameters'!K17*(1+'B Nw en Renovatie parameters'!Y17) -> 0 | Y12: =E12*'B Nw en Renovatie parameters'!L17*(1+'B Nw en Renovatie parameters'!Z17) -> 0 | Z12: =F12*'B Nw en Renovatie parameters'!M17*(1+'B Nw en Renovatie parameters'!AA17) -> 0 | AA12: =G12*'B Nw en Renovatie parameters'!N17*(1+'B Nw en Renovatie parameters'!AB17) -> 0 | AB12: =H12*'B Nw en Renovatie parameters'!O17 -> 0 | AC12: 0 | AD12: 0 | AE12: ='A Scope parameters'!C$3*X12+'A Scope parameters'!C$4*Y12+'A Scope parameters'!C$5*Z12+'A Scope parameters'!C$6*AA12+'A Scope parameters'!C$3*(AB12+AC12) -> 0 | AF12: 0 | AH12: 0 | AI12: 0 | AJ12: 0 | AK12: 0 | AL12: 0 | AM12: 0 | AN12: 0 | AO12: 0 | AP12: 0
A13: =IF(B13="Infra",27,'import DATA-CoP KSDW '!D10) -> 0 | B13: ='import DATA-CoP KSDW '!E10 -> 0 | D13: =('import DATA-CoP KSDW '!$O10)/(1+'A Scope parameters'!X$3) -> 0 | E13: ='import DATA-CoP KSDW '!Q10/(1+'A Scope parameters'!X$4) -> 0 | F13: ='import DATA-CoP KSDW '!S10/(1+'A Scope parameters'!X$5) -> 0 | G13: ='import DATA-CoP KSDW '!U10/(1+'A Scope parameters'!X$6) -> 0 | H13: ='import DATA-CoP KSDW '!V10/(1+'A Scope parameters'!X$3) -> 0 | I13: =IF(A13=27,0,(SUM(D13:G13)+H13)*(('import DATA-CoP KSDW '!W$5+'import DATA-CoP KSDW '!X$5+'import DATA-CoP KSDW '!Y$5)/100)) -> 0 | J13: 0 | K13: ='A Scope parameters'!C$3*D13+'A Scope parameters'!C$4*E13+'A Scope parameters'!C$5*F13+'A Scope parameters'!C$6*G13+'A Scope parameters'!C$3*(H13+I13) -> 0 | L13: 0 | N13: =D13*'B Nw en Renovatie parameters'!D18 -> 0 | O13: =E13*'B Nw en Renovatie parameters'!E18 -> 0 | P13: =F13*'B Nw en Renovatie parameters'!F18 -> 0 | Q13: =G13*'B Nw en Renovatie parameters'!G18 -> 0 | R13: =H13*'B Nw en Renovatie parameters'!H18 -> 0 | S13: 0 | T13: 0 | U13: ='A Scope parameters'!C$3*N13+'A Scope parameters'!C$4*O13+'A Scope parameters'!C$5*P13+'A Scope parameters'!C$6*Q13+'A Scope parameters'!C$3*(R13+S13) -> 0 | V13: 0 | X13: =D13*'B Nw en Renovatie parameters'!K18*(1+'B Nw en Renovatie parameters'!Y18) -> 0 | Y13: =E13*'B Nw en Renovatie parameters'!L18*(1+'B Nw en Renovatie parameters'!Z18) -> 0 | Z13: =F13*'B Nw en Renovatie parameters'!M18*(1+'B Nw en Renovatie parameters'!AA18) -> 0 | AA13: =G13*'B Nw en Renovatie parameters'!N18*(1+'B Nw en Renovatie parameters'!AB18) -> 0 | AB13: =H13*'B Nw en Renovatie parameters'!O18 -> 0 | AC13: 0 | AD13: 0 | AE13: ='A Scope parameters'!C$3*X13+'A Scope parameters'!C$4*Y13+'A Scope parameters'!C$5*Z13+'A Scope parameters'!C$6*AA13+'A Scope parameters'!C$3*(AB13+AC13) -> 0 | AF13: 0 | AH13: 0 | AI13: 0 | AJ13: 0 | AK13: 0 | AL13: 0 | AM13: 0 | AN13: 0 | AO13: 0 | AP13: 0
A14: =IF(B14="Infra",27,'import DATA-CoP KSDW '!D11) -> 0 | B14: ='import DATA-CoP KSDW '!E11 -> 0 | D14: =('import DATA-CoP KSDW '!$O11)/(1+'A Scope parameters'!X$3) -> 0 | E14: ='import DATA-CoP KSDW '!Q11/(1+'A Scope parameters'!X$4) -> 0 | F14: ='import DATA-CoP KSDW '!S11/(1+'A Scope parameters'!X$5) -> 0 | G14: ='import DATA-CoP KSDW '!U11/(1+'A Scope parameters'!X$6) -> 0 | H14: ='import DATA-CoP KSDW '!V11/(1+'A Scope parameters'!X$3) -> 0 | I14: =IF(A14=27,0,(SUM(D14:G14)+H14)*(('import DATA-CoP KSDW '!W$5+'import DATA-CoP KSDW '!X$5+'import DATA-CoP KSDW '!Y$5)/100)) -> 0 | J14: 0 | K14: ='A Scope parameters'!C$3*D14+'A Scope parameters'!C$4*E14+'A Scope parameters'!C$5*F14+'A Scope parameters'!C$6*G14+'A Scope parameters'!C$3*(H14+I14) -> 0 | L14: 0 | N14: =D14*'B Nw en Renovatie parameters'!D19 -> 0 | O14: =E14*'B Nw en Renovatie parameters'!E19 -> 0 | P14: =F14*'B Nw en Renovatie parameters'!F19 -> 0 | Q14: =G14*'B Nw en Renovatie parameters'!G19 -> 0 | R14: =H14*'B Nw en Renovatie parameters'!H19 -> 0 | S14: 0 | T14: 0 | U14: ='A Scope parameters'!C$3*N14+'A Scope parameters'!C$4*O14+'A Scope parameters'!C$5*P14+'A Scope parameters'!C$6*Q14+'A Scope parameters'!C$3*(R14+S14) -> 0 | V14: 0 | X14: =D14*'B Nw en Renovatie parameters'!K19*(1+'B Nw en Renovatie parameters'!Y19) -> 0 | Y14: =E14*'B Nw en Renovatie parameters'!L19*(1+'B Nw en Renovatie parameters'!Z19) -> 0 | Z14: =F14*'B Nw en Renovatie parameters'!M19*(1+'B Nw en Renovatie parameters'!AA19) -> 0 | AA14: =G14*'B Nw en Renovatie parameters'!N19*(1+'B Nw en Renovatie parameters'!AB19) -> 0 | AB14: =H14*'B Nw en Renovatie parameters'!O19 -> 0 | AC14: 0 | AD14: 0 | AE14: ='A Scope parameters'!C$3*X14+'A Scope parameters'!C$4*Y14+'A Scope parameters'!C$5*Z14+'A Scope parameters'!C$6*AA14+'A Scope parameters'!C$3*(AB14+AC14) -> 0 | AF14: 0 | AH14: 0 | AI14: 0 | AJ14: 0 | AK14: 0 | AL14: 0 | AM14: 0 | AN14: 0 | AO14: 0 | AP14: 0
A15: =IF(B15="Infra",27,'import DATA-CoP KSDW '!D12) -> 0 | B15: ='import DATA-CoP KSDW '!E12 -> 0 | D15: =('import DATA-CoP KSDW '!$O12)/(1+'A Scope parameters'!X$3) -> 0 | E15: ='import DATA-CoP KSDW '!Q12/(1+'A Scope parameters'!X$4) -> 0 | F15: ='import DATA-CoP KSDW '!S12/(1+'A Scope parameters'!X$5) -> 0 | G15: ='import DATA-CoP KSDW '!U12/(1+'A Scope parameters'!X$6) -> 0 | H15: ='import DATA-CoP KSDW '!V12/(1+'A Scope parameters'!X$3) -> 0 | I15: =IF(A15=27,0,(SUM(D15:G15)+H15)*(('import DATA-CoP KSDW '!W$5+'import DATA-CoP KSDW '!X$5+'import DATA-CoP KSDW '!Y$5)/100)) -> 0 | J15: 0 | K15: ='A Scope parameters'!C$3*D15+'A Scope parameters'!C$4*E15+'A Scope parameters'!C$5*F15+'A Scope parameters'!C$6*G15+'A Scope parameters'!C$3*(H15+I15) -> 0 | L15: 0 | N15: =D15*'B Nw en Renovatie parameters'!D20 -> 0 | O15: =E15*'B Nw en Renovatie parameters'!E20 -> 0 | P15: =F15*'B Nw en Renovatie parameters'!F20 -> 0 | Q15: =G15*'B Nw en Renovatie parameters'!G20 -> 0 | R15: =H15*'B Nw en Renovatie parameters'!H20 -> 0 | S15: 0 | T15: 0 | U15: ='A Scope parameters'!C$3*N15+'A Scope parameters'!C$4*O15+'A Scope parameters'!C$5*P15+'A Scope parameters'!C$6*Q15+'A Scope parameters'!C$3*(R15+S15) -> 0 | V15: 0 | X15: =D15*'B Nw en Renovatie parameters'!K20*(1+'B Nw en Renovatie parameters'!Y20) -> 0 | Y15: =E15*'B Nw en Renovatie parameters'!L20*(1+'B Nw en Renovatie parameters'!Z20) -> 0 | Z15: =F15*'B Nw en Renovatie parameters'!M20*(1+'B Nw en Renovatie parameters'!AA20) -> 0 | AA15: =G15*'B Nw en Renovatie parameters'!N20*(1+'B Nw en Renovatie parameters'!AB20) -> 0 | AB15: =H15*'B Nw en Renovatie parameters'!O20 -> 0 | AC15: 0 | AD15: 0 | AE15: ='A Scope parameters'!C$3*X15+'A Scope parameters'!C$4*Y15+'A Scope parameters'!C$5*Z15+'A Scope parameters'!C$6*AA15+'A Scope parameters'!C$3*(AB15+AC15) -> 0 | AF15: 0 | AH15: 0 | AI15: 0 | AJ15: 0 | AK15: 0 | AL15: 0 | AM15: 0 | AN15: 0 | AO15: 0 | AP15: 0
A16: =IF(B16="Infra",27,'import DATA-CoP KSDW '!D13) -> 0 | B16: ='import DATA-CoP KSDW '!E13 -> 0 | D16: =('import DATA-CoP KSDW '!$O13)/(1+'A Scope parameters'!X$3) -> 0 | E16: ='import DATA-CoP KSDW '!Q13/(1+'A Scope parameters'!X$4) -> 0 | F16: ='import DATA-CoP KSDW '!S13/(1+'A Scope parameters'!X$5) -> 0 | G16: ='import DATA-CoP KSDW '!U13/(1+'A Scope parameters'!X$6) -> 0 | H16: ='import DATA-CoP KSDW '!V13/(1+'A Scope parameters'!X$3) -> 0 | I16: =IF(A16=27,0,(SUM(D16:G16)+H16)*(('import DATA-CoP KSDW '!W$5+'import DATA-CoP KSDW '!X$5+'import DATA-CoP KSDW '!Y$5)/100)) -> 0 | J16: 0 | K16: ='A Scope parameters'!C$3*D16+'A Scope parameters'!C$4*E16+'A Scope parameters'!C$5*F16+'A Scope parameters'!C$6*G16+'A Scope parameters'!C$3*(H16+I16) -> 0 | L16: 0 | N16: =D16*'B Nw en Renovatie parameters'!D21 -> 0 | O16: =E16*'B Nw en Renovatie parameters'!E21 -> 0 | P16: =F16*'B Nw en Renovatie parameters'!F21 -> 0 | Q16: =G16*'B Nw en Renovatie parameters'!G21 -> 0 | R16: =H16*'B Nw en Renovatie parameters'!H21 -> 0 | S16: 0 | T16: 0 | U16: ='A Scope parameters'!C$3*N16+'A Scope parameters'!C$4*O16+'A Scope parameters'!C$5*P16+'A Scope parameters'!C$6*Q16+'A Scope parameters'!C$3*(R16+S16) -> 0 | V16: 0 | X16: =D16*'B Nw en Renovatie parameters'!K21*(1+'B Nw en Renovatie parameters'!Y21) -> 0 | Y16: =E16*'B Nw en Renovatie parameters'!L21*(1+'B Nw en Renovatie parameters'!Z21) -> 0 | Z16: =F16*'B Nw en Renovatie parameters'!M21*(1+'B Nw en Renovatie parameters'!AA21) -> 0 | AA16: =G16*'B Nw en Renovatie parameters'!N21*(1+'B Nw en Renovatie parameters'!AB21) -> 0 | AB16: =H16*'B Nw en Renovatie parameters'!O21 -> 0 | AC16: 0 | AD16: 0 | AE16: ='A Scope parameters'!C$3*X16+'A Scope parameters'!C$4*Y16+'A Scope parameters'!C$5*Z16+'A Scope parameters'!C$6*AA16+'A Scope parameters'!C$3*(AB16+AC16) -> 0 | AF16: 0 | AH16: 0 | AI16: 0 | AJ16: 0 | AK16: 0 | AL16: 0 | AM16: 0 | AN16: 0 | AO16: 0 | AP16: 0
A17: =IF(B17="Infra",27,'import DATA-CoP KSDW '!D14) -> 0 | B17: ='import DATA-CoP KSDW '!E14 -> 0 | D17: =('import DATA-CoP KSDW '!$O14)/(1+'A Scope parameters'!X$3) -> 0 | E17: ='import DATA-CoP KSDW '!Q14/(1+'A Scope parameters'!X$4) -> 0 | F17: ='import DATA-CoP KSDW '!S14/(1+'A Scope parameters'!X$5) -> 0 | G17: ='import DATA-CoP KSDW '!U14/(1+'A Scope parameters'!X$6) -> 0 | H17: ='import DATA-CoP KSDW '!V14/(1+'A Scope parameters'!X$3) -> 0 | I17: =IF(A17=27,0,(SUM(D17:G17)+H17)*(('import DATA-CoP KSDW '!W$5+'import DATA-CoP KSDW '!X$5+'import DATA-CoP KSDW '!Y$5)/100)) -> 0 | J17: 0 | K17: ='A Scope parameters'!C$3*D17+'A Scope parameters'!C$4*E17+'A Scope parameters'!C$5*F17+'A Scope parameters'!C$6*G17+'A Scope parameters'!C$3*(H17+I17) -> 0 | L17: 0 | N17: =D17*'B Nw en Renovatie parameters'!D22 -> 0 | O17: =E17*'B Nw en Renovatie parameters'!E22 -> 0 | P17: =F17*'B Nw en Renovatie parameters'!F22 -> 0 | Q17: =G17*'B Nw en Renovatie parameters'!G22 -> 0 | R17: =H17*'B Nw en Renovatie parameters'!H22 -> 0 | S17: 0 | T17: 0 | U17: ='A Scope parameters'!C$3*N17+'A Scope parameters'!C$4*O17+'A Scope parameters'!C$5*P17+'A Scope parameters'!C$6*Q17+'A Scope parameters'!C$3*(R17+S17) -> 0 | V17: 0 | X17: =D17*'B Nw en Renovatie parameters'!K22*(1+'B Nw en Renovatie parameters'!Y22) -> 0 | Y17: =E17*'B Nw en Renovatie parameters'!L22*(1+'B Nw en Renovatie parameters'!Z22) -> 0 | Z17: =F17*'B Nw en Renovatie parameters'!M22*(1+'B Nw en Renovatie parameters'!AA22) -> 0 | AA17: =G17*'B Nw en Renovatie parameters'!N22*(1+'B Nw en Renovatie parameters'!AB22) -> 0 | AB17: =H17*'B Nw en Renovatie parameters'!O22 -> 0 | AC17: 0 | AD17: 0 | AE17: ='A Scope parameters'!C$3*X17+'A Scope parameters'!C$4*Y17+'A Scope parameters'!C$5*Z17+'A Scope parameters'!C$6*AA17+'A Scope parameters'!C$3*(AB17+AC17) -> 0 | AF17: 0 | AH17: 0 | AI17: 0 | AJ17: 0 | AK17: 0 | AL17: 0 | AM17: 0 | AN17: 0 | AO17: 0 | AP17: 0
A18: =IF(B18="Infra",27,'import DATA-CoP KSDW '!D15) -> 0 | B18: ='import DATA-CoP KSDW '!E15 -> 0 | D18: =('import DATA-CoP KSDW '!$O15)/(1+'A Scope parameters'!X$3) -> 0 | E18: ='import DATA-CoP KSDW '!Q15/(1+'A Scope parameters'!X$4) -> 0 | F18: ='import DATA-CoP KSDW '!S15/(1+'A Scope parameters'!X$5) -> 0 | G18: ='import DATA-CoP KSDW '!U15/(1+'A Scope parameters'!X$6) -> 0 | H18: ='import DATA-CoP KSDW '!V15/(1+'A Scope parameters'!X$3) -> 0 | I18: =IF(A18=27,0,(SUM(D18:G18)+H18)*(('import DATA-CoP KSDW '!W$5+'import DATA-CoP KSDW '!X$5+'import DATA-CoP KSDW '!Y$5)/100)) -> 0 | J18: 0 | K18: ='A Scope parameters'!C$3*D18+'A Scope parameters'!C$4*E18+'A Scope parameters'!C$5*F18+'A Scope parameters'!C$6*G18+'A Scope parameters'!C$3*(H18+I18) -> 0 | L18: 0 | N18: =D18*'B Nw en Renovatie parameters'!D23 -> 0 | O18: =E18*'B Nw en Renovatie parameters'!E23 -> 0 | P18: =F18*'B Nw en Renovatie parameters'!F23 -> 0 | Q18: =G18*'B Nw en Renovatie parameters'!G23 -> 0 | R18: =H18*'B Nw en Renovatie parameters'!H23 -> 0 | S18: 0 | T18: 0 | U18: ='A Scope parameters'!C$3*N18+'A Scope parameters'!C$4*O18+'A Scope parameters'!C$5*P18+'A Scope parameters'!C$6*Q18+'A Scope parameters'!C$3*(R18+S18) -> 0 | V18: 0 | X18: =D18*'B Nw en Renovatie parameters'!K23*(1+'B Nw en Renovatie parameters'!Y23) -> 0 | Y18: =E18*'B Nw en Renovatie parameters'!L23*(1+'B Nw en Renovatie parameters'!Z23) -> 0 | Z18: =F18*'B Nw en Renovatie parameters'!M23*(1+'B Nw en Renovatie parameters'!AA23) -> 0 | AA18: =G18*'B Nw en Renovatie parameters'!N23*(1+'B Nw en Renovatie parameters'!AB23) -> 0 | AB18: =H18*'B Nw en Renovatie parameters'!O23 -> 0 | AC18: 0 | AD18: 0 | AE18: ='A Scope parameters'!C$3*X18+'A Scope parameters'!C$4*Y18+'A Scope parameters'!C$5*Z18+'A Scope parameters'!C$6*AA18+'A Scope parameters'!C$3*(AB18+AC18) -> 0 | AF18: 0 | AH18: 0 | AI18: 0 | AJ18: 0 | AK18: 0 | AL18: 0 | AM18: 0 | AN18: 0 | AO18: 0 | AP18: 0
A19: =IF(B19="Infra",27,'import DATA-CoP KSDW '!D16) -> 0 | B19: ='import DATA-CoP KSDW '!E16 -> 0 | D19: =('import DATA-CoP KSDW '!$O16)/(1+'A Scope parameters'!X$3) -> 0 | E19: ='import DATA-CoP KSDW '!Q16/(1+'A Scope parameters'!X$4) -> 0 | F19: ='import DATA-CoP KSDW '!S16/(1+'A Scope parameters'!X$5) -> 0 | G19: ='import DATA-CoP KSDW '!U16/(1+'A Scope parameters'!X$6) -> 0 | H19: ='import DATA-CoP KSDW '!V16/(1+'A Scope parameters'!X$3) -> 0 | I19: =IF(A19=27,0,(SUM(D19:G19)+H19)*(('import DATA-CoP KSDW '!W$5+'import DATA-CoP KSDW '!X$5+'import DATA-CoP KSDW '!Y$5)/100)) -> 0 | J19: 0 | K19: ='A Scope parameters'!C$3*D19+'A Scope parameters'!C$4*E19+'A Scope parameters'!C$5*F19+'A Scope parameters'!C$6*G19+'A Scope parameters'!C$3*(H19+I19) -> 0 | L19: 0 | N19: =D19*'B Nw en Renovatie parameters'!D24 -> 0 | O19: =E19*'B Nw en Renovatie parameters'!E24 -> 0 | P19: =F19*'B Nw en Renovatie parameters'!F24 -> 0 | Q19: =G19*'B Nw en Renovatie parameters'!G24 -> 0 | R19: =H19*'B Nw en Renovatie parameters'!H24 -> 0 | S19: 0 | T19: 0 | U19: ='A Scope parameters'!C$3*N19+'A Scope parameters'!C$4*O19+'A Scope parameters'!C$5*P19+'A Scope parameters'!C$6*Q19+'A Scope parameters'!C$3*(R19+S19) -> 0 | V19: 0 | X19: =D19*'B Nw en Renovatie parameters'!K24*(1+'B Nw en Renovatie parameters'!Y24) -> 0 | Y19: =E19*'B Nw en Renovatie parameters'!L24*(1+'B Nw en Renovatie parameters'!Z24) -> 0 | Z19: =F19*'B Nw en Renovatie parameters'!M24*(1+'B Nw en Renovatie parameters'!AA24) -> 0 | AA19: =G19*'B Nw en Renovatie parameters'!N24*(1+'B Nw en Renovatie parameters'!AB24) -> 0 | AB19: =H19*'B Nw en Renovatie parameters'!O24 -> 0 | AC19: 0 | AD19: 0 | AE19: ='A Scope parameters'!C$3*X19+'A Scope parameters'!C$4*Y19+'A Scope parameters'!C$5*Z19+'A Scope parameters'!C$6*AA19+'A Scope parameters'!C$3*(AB19+AC19) -> 0 | AF19: 0 | AH19: 0 | AI19: 0 | AJ19: 0 | AK19: 0 | AL19: 0 | AM19: 0 | AN19: 0 | AO19: 0 | AP19: 0
A20: =IF(B20="Infra",27,'import DATA-CoP KSDW '!D17) -> 0 | B20: ='import DATA-CoP KSDW '!E17 -> 0 | D20: =('import DATA-CoP KSDW '!$O17)/(1+'A Scope parameters'!X$3) -> 0 | E20: ='import DATA-CoP KSDW '!Q17/(1+'A Scope parameters'!X$4) -> 0 | F20: ='import DATA-CoP KSDW '!S17/(1+'A Scope parameters'!X$5) -> 0 | G20: ='import DATA-CoP KSDW '!U17/(1+'A Scope parameters'!X$6) -> 0 | H20: ='import DATA-CoP KSDW '!V17/(1+'A Scope parameters'!X$3) -> 0 | I20: =IF(A20=27,0,(SUM(D20:G20)+H20)*(('import DATA-CoP KSDW '!W$5+'import DATA-CoP KSDW '!X$5+'import DATA-CoP KSDW '!Y$5)/100)) -> 0 | J20: 0 | K20: ='A Scope parameters'!C$3*D20+'A Scope parameters'!C$4*E20+'A Scope parameters'!C$5*F20+'A Scope parameters'!C$6*G20+'A Scope parameters'!C$3*(H20+I20) -> 0 | L20: 0 | N20: =D20*'B Nw en Renovatie parameters'!D25 -> 0 | O20: =E20*'B Nw en Renovatie parameters'!E25 -> 0 | P20: =F20*'B Nw en Renovatie parameters'!F25 -> 0 | Q20: =G20*'B Nw en Renovatie parameters'!G25 -> 0 | R20: =H20*'B Nw en Renovatie parameters'!H25 -> 0 | S20: 0 | T20: 0 | U20: ='A Scope parameters'!C$3*N20+'A Scope parameters'!C$4*O20+'A Scope parameters'!C$5*P20+'A Scope parameters'!C$6*Q20+'A Scope parameters'!C$3*(R20+S20) -> 0 | V20: 0 | X20: =D20*'B Nw en Renovatie parameters'!K25*(1+'B Nw en Renovatie parameters'!Y25) -> 0 | Y20: =E20*'B Nw en Renovatie parameters'!L25*(1+'B Nw en Renovatie parameters'!Z25) -> 0 | Z20: =F20*'B Nw en Renovatie parameters'!M25*(1+'B Nw en Renovatie parameters'!AA25) -> 0 | AA20: =G20*'B Nw en Renovatie parameters'!N25*(1+'B Nw en Renovatie parameters'!AB25) -> 0 | AB20: =H20*'B Nw en Renovatie parameters'!O25 -> 0 | AC20: 0 | AD20: 0 | AE20: ='A Scope parameters'!C$3*X20+'A Scope parameters'!C$4*Y20+'A Scope parameters'!C$5*Z20+'A Scope parameters'!C$6*AA20+'A Scope parameters'!C$3*(AB20+AC20) -> 0 | AF20: 0 | AH20: 0 | AI20: 0 | AJ20: 0 | AK20: 0 | AL20: 0 | AM20: 0 | AN20: 0 | AO20: 0 | AP20: 0
A21: =IF(B21="Infra",27,'import DATA-CoP KSDW '!D18) -> 0 | B21: ='import DATA-CoP KSDW '!E18 -> 0 | D21: =('import DATA-CoP KSDW '!$O18)/(1+'A Scope parameters'!X$3) -> 0 | E21: ='import DATA-CoP KSDW '!Q18/(1+'A Scope parameters'!X$4) -> 0 | F21: ='import DATA-CoP KSDW '!S18/(1+'A Scope parameters'!X$5) -> 0 | G21: ='import DATA-CoP KSDW '!U18/(1+'A Scope parameters'!X$6) -> 0 | H21: ='import DATA-CoP KSDW '!V18/(1+'A Scope parameters'!X$3) -> 0 | I21: =IF(A21=27,0,(SUM(D21:G21)+H21)*(('import DATA-CoP KSDW '!W$5+'import DATA-CoP KSDW '!X$5+'import DATA-CoP KSDW '!Y$5)/100)) -> 0 | J21: 0 | K21: ='A Scope parameters'!C$3*D21+'A Scope parameters'!C$4*E21+'A Scope parameters'!C$5*F21+'A Scope parameters'!C$6*G21+'A Scope parameters'!C$3*(H21+I21) -> 0 | L21: 0 | N21: =D21*'B Nw en Renovatie parameters'!D26 -> 0 | O21: =E21*'B Nw en Renovatie parameters'!E26 -> 0 | P21: =F21*'B Nw en Renovatie parameters'!F26 -> 0 | Q21: =G21*'B Nw en Renovatie parameters'!G26 -> 0 | R21: =H21*'B Nw en Renovatie parameters'!H26 -> 0 | S21: 0 | T21: 0 | U21: ='A Scope parameters'!C$3*N21+'A Scope parameters'!C$4*O21+'A Scope parameters'!C$5*P21+'A Scope parameters'!C$6*Q21+'A Scope parameters'!C$3*(R21+S21) -> 0 | V21: 0 | X21: =D21*'B Nw en Renovatie parameters'!K26*(1+'B Nw en Renovatie parameters'!Y26) -> 0 | Y21: =E21*'B Nw en Renovatie parameters'!L26*(1+'B Nw en Renovatie parameters'!Z26) -> 0 | Z21: =F21*'B Nw en Renovatie parameters'!M26*(1+'B Nw en Renovatie parameters'!AA26) -> 0 | AA21: =G21*'B Nw en Renovatie parameters'!N26*(1+'B Nw en Renovatie parameters'!AB26) -> 0 | AB21: =H21*'B Nw en Renovatie parameters'!O26 -> 0 | AC21: 0 | AD21: 0 | AE21: ='A Scope parameters'!C$3*X21+'A Scope parameters'!C$4*Y21+'A Scope parameters'!C$5*Z21+'A Scope parameters'!C$6*AA21+'A Scope parameters'!C$3*(AB21+AC21) -> 0 | AF21: 0 | AH21: 0 | AI21: 0 | AJ21: 0 | AK21: 0 | AL21: 0 | AM21: 0 | AN21: 0 | AO21: 0 | AP21: 0
A22: =IF(B22="Infra",27,'import DATA-CoP KSDW '!D19) -> 0 | B22: ='import DATA-CoP KSDW '!E19 -> 0 | D22: =('import DATA-CoP KSDW '!$O19)/(1+'A Scope parameters'!X$3) -> 0 | E22: ='import DATA-CoP KSDW '!Q19/(1+'A Scope parameters'!X$4) -> 0 | F22: ='import DATA-CoP KSDW '!S19/(1+'A Scope parameters'!X$5) -> 0 | G22: ='import DATA-CoP KSDW '!U19/(1+'A Scope parameters'!X$6) -> 0 | H22: ='import DATA-CoP KSDW '!V19/(1+'A Scope parameters'!X$3) -> 0 | I22: =IF(A22=27,0,(SUM(D22:G22)+H22)*(('import DATA-CoP KSDW '!W$5+'import DATA-CoP KSDW '!X$5+'import DATA-CoP KSDW '!Y$5)/100)) -> 0 | J22: 0 | K22: ='A Scope parameters'!C$3*D22+'A Scope parameters'!C$4*E22+'A Scope parameters'!C$5*F22+'A Scope parameters'!C$6*G22+'A Scope parameters'!C$3*(H22+I22) -> 0 | L22: 0 | N22: =D22*'B Nw en Renovatie parameters'!D27 -> 0 | O22: =E22*'B Nw en Renovatie parameters'!E27 -> 0 | P22: =F22*'B Nw en Renovatie parameters'!F27 -> 0 | Q22: =G22*'B Nw en Renovatie parameters'!G27 -> 0 | R22: =H22*'B Nw en Renovatie parameters'!H27 -> 0 | S22: 0 | T22: 0 | U22: ='A Scope parameters'!C$3*N22+'A Scope parameters'!C$4*O22+'A Scope parameters'!C$5*P22+'A Scope parameters'!C$6*Q22+'A Scope parameters'!C$3*(R22+S22) -> 0 | V22: 0 | X22: =D22*'B Nw en Renovatie parameters'!K27*(1+'B Nw en Renovatie parameters'!Y27) -> 0 | Y22: =E22*'B Nw en Renovatie parameters'!L27*(1+'B Nw en Renovatie parameters'!Z27) -> 0 | Z22: =F22*'B Nw en Renovatie parameters'!M27*(1+'B Nw en Renovatie parameters'!AA27) -> 0 | AA22: =G22*'B Nw en Renovatie parameters'!N27*(1+'B Nw en Renovatie parameters'!AB27) -> 0 | AB22: =H22*'B Nw en Renovatie parameters'!O27 -> 0 | AC22: 0 | AD22: 0 | AE22: ='A Scope parameters'!C$3*X22+'A Scope parameters'!C$4*Y22+'A Scope parameters'!C$5*Z22+'A Scope parameters'!C$6*AA22+'A Scope parameters'!C$3*(AB22+AC22) -> 0 | AF22: 0 | AH22: 0 | AI22: 0 | AJ22: 0 | AK22: 0 | AL22: 0 | AM22: 0 | AN22: 0 | AO22: 0 | AP22: 0
A23: =IF(B23="Infra",27,'import DATA-CoP KSDW '!D20) -> 0 | B23: ='import DATA-CoP KSDW '!E20 -> 0 | D23: =('import DATA-CoP KSDW '!$O20)/(1+'A Scope parameters'!X$3) -> 0 | E23: ='import DATA-CoP KSDW '!Q20/(1+'A Scope parameters'!X$4) -> 0 | F23: ='import DATA-CoP KSDW '!S20/(1+'A Scope parameters'!X$5) -> 0 | G23: ='import DATA-CoP KSDW '!U20/(1+'A Scope parameters'!X$6) -> 0 | H23: ='import DATA-CoP KSDW '!V20/(1+'A Scope parameters'!X$3) -> 0 | I23: =IF(A23=27,0,(SUM(D23:G23)+H23)*(('import DATA-CoP KSDW '!W$5+'import DATA-CoP KSDW '!X$5+'import DATA-CoP KSDW '!Y$5)/100)) -> 0 | J23: 0 | K23: ='A Scope parameters'!C$3*D23+'A Scope parameters'!C$4*E23+'A Scope parameters'!C$5*F23+'A Scope parameters'!C$6*G23+'A Scope parameters'!C$3*(H23+I23) -> 0 | L23: 0 | N23: =D23*'B Nw en Renovatie parameters'!D28 -> 0 | O23: =E23*'B Nw en Renovatie parameters'!E28 -> 0 | P23: =F23*'B Nw en Renovatie parameters'!F28 -> 0 | Q23: =G23*'B Nw en Renovatie parameters'!G28 -> 0 | R23: =H23*'B Nw en Renovatie parameters'!H28 -> 0 | S23: 0 | T23: 0 | U23: ='A Scope parameters'!C$3*N23+'A Scope parameters'!C$4*O23+'A Scope parameters'!C$5*P23+'A Scope parameters'!C$6*Q23+'A Scope parameters'!C$3*(R23+S23) -> 0 | V23: 0 | X23: =D23*'B Nw en Renovatie parameters'!K28*(1+'B Nw en Renovatie parameters'!Y28) -> 0 | Y23: =E23*'B Nw en Renovatie parameters'!L28*(1+'B Nw en Renovatie parameters'!Z28) -> 0 | Z23: =F23*'B Nw en Renovatie parameters'!M28*(1+'B Nw en Renovatie parameters'!AA28) -> 0 | AA23: =G23*'B Nw en Renovatie parameters'!N28*(1+'B Nw en Renovatie parameters'!AB28) -> 0 | AB23: =H23*'B Nw en Renovatie parameters'!O28 -> 0 | AC23: 0 | AD23: 0 | AE23: ='A Scope parameters'!C$3*X23+'A Scope parameters'!C$4*Y23+'A Scope parameters'!C$5*Z23+'A Scope parameters'!C$6*AA23+'A Scope parameters'!C$3*(AB23+AC23) -> 0 | AF23: 0 | AH23: 0 | AI23: 0 | AJ23: 0 | AK23: 0 | AL23: 0 | AM23: 0 | AN23: 0 | AO23: 0 | AP23: 0
A24: =IF(B24="Infra",27,'import DATA-CoP KSDW '!D21) -> 0 | B24: ='import DATA-CoP KSDW '!E21 -> 0 | D24: =('import DATA-CoP KSDW '!$O21)/(1+'A Scope parameters'!X$3) -> 0 | E24: ='import DATA-CoP KSDW '!Q21/(1+'A Scope parameters'!X$4) -> 0 | F24: ='import DATA-CoP KSDW '!S21/(1+'A Scope parameters'!X$5) -> 0 | G24: ='import DATA-CoP KSDW '!U21/(1+'A Scope parameters'!X$6) -> 0 | H24: ='import DATA-CoP KSDW '!V21/(1+'A Scope parameters'!X$3) -> 0 | I24: =IF(A24=27,0,(SUM(D24:G24)+H24)*(('import DATA-CoP KSDW '!W$5+'import DATA-CoP KSDW '!X$5+'import DATA-CoP KSDW '!Y$5)/100)) -> 0 | J24: 0 | K24: ='A Scope parameters'!C$3*D24+'A Scope parameters'!C$4*E24+'A Scope parameters'!C$5*F24+'A Scope parameters'!C$6*G24+'A Scope parameters'!C$3*(H24+I24) -> 0 | L24: 0 | N24: =D24*'B Nw en Renovatie parameters'!D29 -> 0 | O24: =E24*'B Nw en Renovatie parameters'!E29 -> 0 | P24: =F24*'B Nw en Renovatie parameters'!F29 -> 0 | Q24: =G24*'B Nw en Renovatie parameters'!G29 -> 0 | R24: =H24*'B Nw en Renovatie parameters'!H29 -> 0 | S24: 0 | T24: 0 | U24: ='A Scope parameters'!C$3*N24+'A Scope parameters'!C$4*O24+'A Scope parameters'!C$5*P24+'A Scope parameters'!C$6*Q24+'A Scope parameters'!C$3*(R24+S24) -> 0 | V24: 0 | X24: =D24*'B Nw en Renovatie parameters'!K29*(1+'B Nw en Renovatie parameters'!Y29) -> 0 | Y24: =E24*'B Nw en Renovatie parameters'!L29*(1+'B Nw en Renovatie parameters'!Z29) -> 0 | Z24: =F24*'B Nw en Renovatie parameters'!M29*(1+'B Nw en Renovatie parameters'!AA29) -> 0 | AA24: =G24*'B Nw en Renovatie parameters'!N29*(1+'B Nw en Renovatie parameters'!AB29) -> 0 | AB24: =H24*'B Nw en Renovatie parameters'!O29 -> 0 | AC24: 0 | AD24: 0 | AE24: ='A Scope parameters'!C$3*X24+'A Scope parameters'!C$4*Y24+'A Scope parameters'!C$5*Z24+'A Scope parameters'!C$6*AA24+'A Scope parameters'!C$3*(AB24+AC24) -> 0 | AF24: 0 | AH24: 0 | AI24: 0 | AJ24: 0 | AK24: 0 | AL24: 0 | AM24: 0 | AN24: 0 | AO24: 0 | AP24: 0
A25: =IF(B25="Infra",27,'import DATA-CoP KSDW '!D22) -> 0 | B25: ='import DATA-CoP KSDW '!E22 -> 0 | D25: =('import DATA-CoP KSDW '!$O22)/(1+'A Scope parameters'!X$3) -> 0 | E25: ='import DATA-CoP KSDW '!Q22/(1+'A Scope parameters'!X$4) -> 0 | F25: ='import DATA-CoP KSDW '!S22/(1+'A Scope parameters'!X$5) -> 0 | G25: ='import DATA-CoP KSDW '!U22/(1+'A Scope parameters'!X$6) -> 0 | H25: ='import DATA-CoP KSDW '!V22/(1+'A Scope parameters'!X$3) -> 0 | I25: =IF(A25=27,0,(SUM(D25:G25)+H25)*(('import DATA-CoP KSDW '!W$5+'import DATA-CoP KSDW '!X$5+'import DATA-CoP KSDW '!Y$5)/100)) -> 0 | J25: 0 | K25: ='A Scope parameters'!C$3*D25+'A Scope parameters'!C$4*E25+'A Scope parameters'!C$5*F25+'A Scope parameters'!C$6*G25+'A Scope parameters'!C$3*(H25+I25) -> 0 | L25: 0 | N25: =D25*'B Nw en Renovatie parameters'!D30 -> 0 | O25: =E25*'B Nw en Renovatie parameters'!E30 -> 0 | P25: =F25*'B Nw en Renovatie parameters'!F30 -> 0 | Q25: =G25*'B Nw en Renovatie parameters'!G30 -> 0 | R25: =H25*'B Nw en Renovatie parameters'!H30 -> 0 | S25: 0 | T25: 0 | U25: ='A Scope parameters'!C$3*N25+'A Scope parameters'!C$4*O25+'A Scope parameters'!C$5*P25+'A Scope parameters'!C$6*Q25+'A Scope parameters'!C$3*(R25+S25) -> 0 | V25: 0 | X25: =D25*'B Nw en Renovatie parameters'!K30*(1+'B Nw en Renovatie parameters'!Y30) -> 0 | Y25: =E25*'B Nw en Renovatie parameters'!L30*(1+'B Nw en Renovatie parameters'!Z30) -> 0 | Z25: =F25*'B Nw en Renovatie parameters'!M30*(1+'B Nw en Renovatie parameters'!AA30) -> 0 | AA25: =G25*'B Nw en Renovatie parameters'!N30*(1+'B Nw en Renovatie parameters'!AB30) -> 0 | AB25: =H25*'B Nw en Renovatie parameters'!O30 -> 0 | AC25: 0 | AD25: 0 | AE25: ='A Scope parameters'!C$3*X25+'A Scope parameters'!C$4*Y25+'A Scope parameters'!C$5*Z25+'A Scope parameters'!C$6*AA25+'A Scope parameters'!C$3*(AB25+AC25) -> 0 | AF25: 0 | AH25: 0 | AI25: 0 | AJ25: 0 | AK25: 0 | AL25: 0 | AM25: 0 | AN25: 0 | AO25: 0 | AP25: 0
A26: =IF(B26="Infra",27,'import DATA-CoP KSDW '!D23) -> 0 | B26: ='import DATA-CoP KSDW '!E23 -> 0 | D26: =('import DATA-CoP KSDW '!$O23)/(1+'A Scope parameters'!X$3) -> 0 | E26: ='import DATA-CoP KSDW '!Q23/(1+'A Scope parameters'!X$4) -> 0 | F26: ='import DATA-CoP KSDW '!S23/(1+'A Scope parameters'!X$5) -> 0 | G26: ='import DATA-CoP KSDW '!U23/(1+'A Scope parameters'!X$6) -> 0 | H26: ='import DATA-CoP KSDW '!V23/(1+'A Scope parameters'!X$3) -> 0 | I26: =IF(A26=27,0,(SUM(D26:G26)+H26)*(('import DATA-CoP KSDW '!W$5+'import DATA-CoP KSDW '!X$5+'import DATA-CoP KSDW '!Y$5)/100)) -> 0 | J26: 0 | K26: ='A Scope parameters'!C$3*D26+'A Scope parameters'!C$4*E26+'A Scope parameters'!C$5*F26+'A Scope parameters'!C$6*G26+'A Scope parameters'!C$3*(H26+I26) -> 0 | L26: 0 | N26: =D26*'B Nw en Renovatie parameters'!D31 -> 0 | O26: =E26*'B Nw en Renovatie parameters'!E31 -> 0 | P26: =F26*'B Nw en Renovatie parameters'!F31 -> 0 | Q26: =G26*'B Nw en Renovatie parameters'!G31 -> 0 | R26: =H26*'B Nw en Renovatie parameters'!H31 -> 0 | S26: 0 | T26: 0 | U26: ='A Scope parameters'!C$3*N26+'A Scope parameters'!C$4*O26+'A Scope parameters'!C$5*P26+'A Scope parameters'!C$6*Q26+'A Scope parameters'!C$3*(R26+S26) -> 0 | V26: 0 | X26: =D26*'B Nw en Renovatie parameters'!K31*(1+'B Nw en Renovatie parameters'!Y31) -> 0 | Y26: =E26*'B Nw en Renovatie parameters'!L31*(1+'B Nw en Renovatie parameters'!Z31) -> 0 | Z26: =F26*'B Nw en Renovatie parameters'!M31*(1+'B Nw en Renovatie parameters'!AA31) -> 0 | AA26: =G26*'B Nw en Renovatie parameters'!N31*(1+'B Nw en Renovatie parameters'!AB31) -> 0 | AB26: =H26*'B Nw en Renovatie parameters'!O31 -> 0 | AC26: 0 | AD26: 0 | AE26: ='A Scope parameters'!C$3*X26+'A Scope parameters'!C$4*Y26+'A Scope parameters'!C$5*Z26+'A Scope parameters'!C$6*AA26+'A Scope parameters'!C$3*(AB26+AC26) -> 0 | AF26: 0 | AH26: 0 | AI26: 0 | AJ26: 0 | AK26: 0 | AL26: 0 | AM26: 0 | AN26: 0 | AO26: 0 | AP26: 0
A27: =IF(B27="Infra",27,'import DATA-CoP KSDW '!D24) -> 0 | B27: ='import DATA-CoP KSDW '!E24 -> 0 | D27: =('import DATA-CoP KSDW '!$O24)/(1+'A Scope parameters'!X$3) -> 0 | E27: ='import DATA-CoP KSDW '!Q24/(1+'A Scope parameters'!X$4) -> 0 | F27: ='import DATA-CoP KSDW '!S24/(1+'A Scope parameters'!X$5) -> 0 | G27: ='import DATA-CoP KSDW '!U24/(1+'A Scope parameters'!X$6) -> 0 | H27: ='import DATA-CoP KSDW '!V24/(1+'A Scope parameters'!X$3) -> 0 | I27: =IF(A27=27,0,(SUM(D27:G27)+H27)*(('import DATA-CoP KSDW '!W$5+'import DATA-CoP KSDW '!X$5+'import DATA-CoP KSDW '!Y$5)/100)) -> 0 | J27: 0 | K27: ='A Scope parameters'!C$3*D27+'A Scope parameters'!C$4*E27+'A Scope parameters'!C$5*F27+'A Scope parameters'!C$6*G27+'A Scope parameters'!C$3*(H27+I27) -> 0 | L27: 0 | N27: =D27*'B Nw en Renovatie parameters'!D32 -> 0 | O27: =E27*'B Nw en Renovatie parameters'!E32 -> 0 | P27: =F27*'B Nw en Renovatie parameters'!F32 -> 0 | Q27: =G27*'B Nw en Renovatie parameters'!G32 -> 0 | R27: =H27*'B Nw en Renovatie parameters'!H32 -> 0 | S27: 0 | T27: 0 | U27: ='A Scope parameters'!C$3*N27+'A Scope parameters'!C$4*O27+'A Scope parameters'!C$5*P27+'A Scope parameters'!C$6*Q27+'A Scope parameters'!C$3*(R27+S27) -> 0 | V27: 0 | X27: =D27*'B Nw en Renovatie parameters'!K32*(1+'B Nw en Renovatie parameters'!Y32) -> 0 | Y27: =E27*'B Nw en Renovatie parameters'!L32*(1+'B Nw en Renovatie parameters'!Z32) -> 0 | Z27: =F27*'B Nw en Renovatie parameters'!M32*(1+'B Nw en Renovatie parameters'!AA32) -> 0 | AA27: =G27*'B Nw en Renovatie parameters'!N32*(1+'B Nw en Renovatie parameters'!AB32) -> 0 | AB27: =H27*'B Nw en Renovatie parameters'!O32 -> 0 | AC27: 0 | AD27: 0 | AE27: ='A Scope parameters'!C$3*X27+'A Scope parameters'!C$4*Y27+'A Scope parameters'!C$5*Z27+'A Scope parameters'!C$6*AA27+'A Scope parameters'!C$3*(AB27+AC27) -> 0 | AF27: 0 | AH27: 0 | AI27: 0 | AJ27: 0 | AK27: 0 | AL27: 0 | AM27: 0 | AN27: 0 | AO27: 0 | AP27: 0
A28: =IF(B28="Infra",27,'import DATA-CoP KSDW '!D25) -> 0 | B28: ='import DATA-CoP KSDW '!E25 -> 0 | D28: =('import DATA-CoP KSDW '!$O25)/(1+'A Scope parameters'!X$3) -> 0 | E28: ='import DATA-CoP KSDW '!Q25/(1+'A Scope parameters'!X$4) -> 0 | F28: ='import DATA-CoP KSDW '!S25/(1+'A Scope parameters'!X$5) -> 0 | G28: ='import DATA-CoP KSDW '!U25/(1+'A Scope parameters'!X$6) -> 0 | H28: ='import DATA-CoP KSDW '!V25/(1+'A Scope parameters'!X$3) -> 0 | I28: =IF(A28=27,0,(SUM(D28:G28)+H28)*(('import DATA-CoP KSDW '!W$5+'import DATA-CoP KSDW '!X$5+'import DATA-CoP KSDW '!Y$5)/100)) -> 0 | J28: 0 | K28: ='A Scope parameters'!C$3*D28+'A Scope parameters'!C$4*E28+'A Scope parameters'!C$5*F28+'A Scope parameters'!C$6*G28+'A Scope parameters'!C$3*(H28+I28) -> 0 | L28: 0 | N28: =D28*'B Nw en Renovatie parameters'!D33 -> 0 | O28: =E28*'B Nw en Renovatie parameters'!E33 -> 0 | P28: =F28*'B Nw en Renovatie parameters'!F33 -> 0 | Q28: =G28*'B Nw en Renovatie parameters'!G33 -> 0 | R28: =H28*'B Nw en Renovatie parameters'!H33 -> 0 | S28: 0 | T28: 0 | U28: ='A Scope parameters'!C$3*N28+'A Scope parameters'!C$4*O28+'A Scope parameters'!C$5*P28+'A Scope parameters'!C$6*Q28+'A Scope parameters'!C$3*(R28+S28) -> 0 | V28: 0 | X28: =D28*'B Nw en Renovatie parameters'!K33*(1+'B Nw en Renovatie parameters'!Y33) -> 0 | Y28: =E28*'B Nw en Renovatie parameters'!L33*(1+'B Nw en Renovatie parameters'!Z33) -> 0 | Z28: =F28*'B Nw en Renovatie parameters'!M33*(1+'B Nw en Renovatie parameters'!AA33) -> 0 | AA28: =G28*'B Nw en Renovatie parameters'!N33*(1+'B Nw en Renovatie parameters'!AB33) -> 0 | AB28: =H28*'B Nw en Renovatie parameters'!O33 -> 0 | AC28: 0 | AD28: 0 | AE28: ='A Scope parameters'!C$3*X28+'A Scope parameters'!C$4*Y28+'A Scope parameters'!C$5*Z28+'A Scope parameters'!C$6*AA28+'A Scope parameters'!C$3*(AB28+AC28) -> 0 | AF28: 0 | AH28: 0 | AI28: 0 | AJ28: 0 | AK28: 0 | AL28: 0 | AM28: 0 | AN28: 0 | AO28: 0 | AP28: 0
A29: =IF(B29="Infra",27,'import DATA-CoP KSDW '!D26) -> 0 | B29: ='import DATA-CoP KSDW '!E20 -> 0 | D29: =('import DATA-CoP KSDW '!$O26)/(1+'A Scope parameters'!X$3) -> 0 | E29: ='import DATA-CoP KSDW '!Q26/(1+'A Scope parameters'!X$4) -> 0 | F29: ='import DATA-CoP KSDW '!S26/(1+'A Scope parameters'!X$5) -> 0 | G29: ='import DATA-CoP KSDW '!U26/(1+'A Scope parameters'!X$6) -> 0 | H29: ='import DATA-CoP KSDW '!V26/(1+'A Scope parameters'!X$3) -> 0 | I29: =IF(A29=27,0,(SUM(D29:G29)+H29)*(('import DATA-CoP KSDW '!W$5+'import DATA-CoP KSDW '!X$5+'import DATA-CoP KSDW '!Y$5)/100)) -> 0 | J29: 0 | K29: ='A Scope parameters'!C$3*D29+'A Scope parameters'!C$4*E29+'A Scope parameters'!C$5*F29+'A Scope parameters'!C$6*G29+'A Scope parameters'!C$3*(H29+I29) -> 0 | L29: 0 | N29: =D29*'B Nw en Renovatie parameters'!D34 -> 0 | O29: =E29*'B Nw en Renovatie parameters'!E34 -> 0 | P29: =F29*'B Nw en Renovatie parameters'!F34 -> 0 | Q29: =G29*'B Nw en Renovatie parameters'!G34 -> 0 | R29: =H29*'B Nw en Renovatie parameters'!H34 -> 0 | S29: 0 | T29: 0 | U29: ='A Scope parameters'!C$3*N29+'A Scope parameters'!C$4*O29+'A Scope parameters'!C$5*P29+'A Scope parameters'!C$6*Q29+'A Scope parameters'!C$3*(R29+S29) -> 0 | V29: 0 | X29: =D29*'B Nw en Renovatie parameters'!K34*(1+'B Nw en Renovatie parameters'!Y34) -> 0 | Y29: =E29*'B Nw en Renovatie parameters'!L34*(1+'B Nw en Renovatie parameters'!Z34) -> 0 | Z29: =F29*'B Nw en Renovatie parameters'!M34*(1+'B Nw en Renovatie parameters'!AA34) -> 0 | AA29: =G29*'B Nw en Renovatie parameters'!N34*(1+'B Nw en Renovatie parameters'!AB34) -> 0 | AB29: =H29*'B Nw en Renovatie parameters'!O34 -> 0 | AC29: 0 | AD29: 0 | AE29: ='A Scope parameters'!C$3*X29+'A Scope parameters'!C$4*Y29+'A Scope parameters'!C$5*Z29+'A Scope parameters'!C$6*AA29+'A Scope parameters'!C$3*(AB29+AC29) -> 0 | AF29: 0 | AH29: 0 | AI29: 0 | AJ29: 0 | AK29: 0 | AL29: 0 | AM29: 0 | AN29: 0 | AO29: 0 | AP29: 0
B30: Totale bouwkosten | D30: =SUM(D9:D29) -> 0 | E30: 0 | F30: 0 | G30: 0 | H30: =SUM(H9:H29) -> 0 | I30: =SUM(I9:I29) -> 0 | J30: =SUM(J9:J29) -> 0 | K30: 0 | L30: =J30+K30 -> 0 | N30: =SUM(N9:N29) -> 0 | O30: 0 | P30: 0 | Q30: 0 | R30: =SUM(R9:R29) -> 0 | S30: 0 | T30: =SUM(T9:T29) -> 0 | U30: =SUM(U9:U29) -> 0 | V30: =SUM(V9:V29) -> 0 | X30: =SUM(X9:X29) -> 0 | Y30: =SUM(Y9:Y29) -> 0 | Z30: 0 | AA30: 0 | AB30: =SUM(AB9:AB29) -> 0 | AC30: 0 | AD30: 0 | AE30: 0 | AF30: =AD30+AE30 -> 0 | AH30: =SUM(AH9:AH29) -> 0 | AI30: =SUM(AI9:AI29) -> 0 | AJ30: 0 | AK30: 0 | AL30: =SUM(AL9:AL29) -> 0 | AM30: 0 | AN30: 0 | AO30: 0 | AP30: =AN30+AO30 -> 0
K32: check | L32: =SUM(L9:L29) -> 0 | U32: check | V32: =SUM(V9:V29) -> 0 | AE32: check | AF32: =SUM(AF9:AF29) -> 0 | AO32: check | AP32: =SUM(AP9:AP29) -> 0
D34: Toeslagen nieuwbouw BK | J34: Totaal | K34: Indirecte BK | L34: Totaal toeslag ( per categorie) | N34: Toeslagen nieuwbouw BK | T34: Totaal | U34: Indirecte BK | V34: Totaal toeslag ( per categorie) | X34: Toeslagen met renovatie BK | AD34: Totaal | AE34: Indirecte BK | AF34: Totaal toeslag ( per categorie) | AH34: Toeslagen totaal op BK | AN34: Totaal | AO34: Indirecte BK | AP34: Totaal toeslag ( per categorie)
D35: CTB | E35: WTB | F35: E & I | G35: PA | J35: Directe BK | K35: Indirecte BK | L35: Bouwkosten | N35: CTB | O35: WTB | P35: E & I | Q35: PA | T35: Directe BK | U35: Indirecte BK | V35: Bouwkosten | X35: CTB | Y35: WTB | Z35: E & I | AA35: PA | AD35: Directe BK | AE35: Indirecte BK | AF35: Bouwkosten | AH35: CTB | AI35: WTB | AJ35: E & I | AK35: PA | AN35: Directe BK | AO35: Indirecte BK | AP35: Bouwkosten
B36: ='A Scope parameters'!B20 -> Duurzame materialen / circulair bouwen | D36: =$D$30*'A Scope parameters'!H20 -> 0 | E36: =$E$30*'A Scope parameters'!I20 -> 0 | F36: =$F$30*'A Scope parameters'!J20 -> 0 | G36: =$G$30*'A Scope parameters'!K20 -> 0 | J36: =SUM(D36:I36) -> 0 | K36: ='A Scope parameters'!C$3*J36 -> 0 | L36: =J36+K36 -> 0 | N36: =$N$30*'A Scope parameters'!H20 -> 0 | O36: =$O$30*'A Scope parameters'!I20 -> 0 | P36: =$P$30*'A Scope parameters'!J20 -> 0 | Q36: =$Q$30*'A Scope parameters'!K20 -> 0 | T36: =SUM(N36:S36) -> 0 | U36: ='A Scope parameters'!C$3*T36 -> 0 | V36: =T36+U36 -> 0 | X36: =$X$30*'A Scope parameters'!H20 -> 0 | Y36: =$Y$30*'A Scope parameters'!I20 -> 0 | Z36: =$Z$30*'A Scope parameters'!J20 -> 0 | AA36: =$AA$30*'A Scope parameters'!K20 -> 0 | AD36: =SUM(X36:AC36) -> 0 | AE36: ='A Scope parameters'!C$3*SUM(X36:AC36) -> 0 | AF36: =AD36+AE36 -> 0 | AH36: =N36+X36 -> 0 | AI36: 0 | AJ36: 0 | AK36: 0 | AN36: =T36+AD36 -> 0 | AO36: 0 | AP36: 0
B37: ='A Scope parameters'!B21 -> Elektrisch werken (emissieloos bouwen) | D37: =$D$30*'A Scope parameters'!H21 -> 0 | E37: =$E$30*'A Scope parameters'!I21 -> 0 | F37: =$F$30*'A Scope parameters'!J21 -> 0 | G37: =$G$30*'A Scope parameters'!K21 -> 0 | J37: 0 | K37: ='A Scope parameters'!C$3*J37 -> 0 | L37: =J37+K37 -> 0 | N37: =$N$30*'A Scope parameters'!H21 -> 0 | O37: =$O$30*'A Scope parameters'!I21 -> 0 | P37: =$P$30*'A Scope parameters'!J21 -> 0 | Q37: =$Q$30*'A Scope parameters'!K21 -> 0 | T37: 0 | U37: ='A Scope parameters'!C$3*T37 -> 0 | V37: 0 | X37: =$X$30*'A Scope parameters'!H21 -> 0 | Y37: =$Y$30*'A Scope parameters'!I21 -> 0 | Z37: =$Z$30*'A Scope parameters'!J21 -> 0 | AA37: =$AA$30*'A Scope parameters'!K21 -> 0 | AD37: =SUM(X37:AC37) -> 0 | AE37: ='A Scope parameters'!C$3*SUM(X37:AC37) -> 0 | AF37: =AD37+AE37 -> 0 | AH37: 0 | AI37: 0 | AJ37: 0 | AK37: 0 | AN37: 0 | AO37: 0 | AP37: 0
B38: ='A Scope parameters'!B22 -> Volledig onafhankelijke straten (keuzelijst) | D38: =$D$30*'A Scope parameters'!H22 -> 0 | E38: =$E$30*'A Scope parameters'!I22 -> 0 | F38: =$F$30*'A Scope parameters'!J22 -> 0 | G38: =$G$30*'A Scope parameters'!K22 -> 0 | J38: 0 | K38: ='A Scope parameters'!C$3*J38 -> 0 | L38: 0 | N38: =$N$30*'A Scope parameters'!H22 -> 0 | O38: =$O$30*'A Scope parameters'!I22 -> 0 | P38: =$P$30*'A Scope parameters'!J22 -> 0 | Q38: =$Q$30*'A Scope parameters'!K22 -> 0 | T38: 0 | U38: ='A Scope parameters'!C$3*T38 -> 0 | V38: 0 | X38: =$X$30*'A Scope parameters'!H22 -> 0 | Y38: =$Y$30*'A Scope parameters'!I22 -> 0 | Z38: =$Z$30*'A Scope parameters'!J22 -> 0 | AA38: =$AA$30*'A Scope parameters'!K22 -> 0 | AD38: 0 | AE38: ='A Scope parameters'!C$3*SUM(X38:AC38) -> 0 | AF38: 0 | AH38: 0 | AI38: 0 | AJ38: 0 | AK38: 0 | AN38: 0 | AO38: 0 | AP38: 0
B39: ='A Scope parameters'!B23 -> Extra kosten standaardisatie | D39: =$D$30*'A Scope parameters'!H23 -> 0 | E39: =$E$30*'A Scope parameters'!I23 -> 0 | F39: =$F$30*'A Scope parameters'!J23 -> 0 | G39: =$G$30*'A Scope parameters'!K23 -> 0 | J39: 0 | K39: ='A Scope parameters'!C$3*J39 -> 0 | L39: 0 | N39: =$N$30*'A Scope parameters'!H23 -> 0 | O39: =$O$30*'A Scope parameters'!I23 -> 0 | P39: =$P$30*'A Scope parameters'!J23 -> 0 | Q39: =$Q$30*'A Scope parameters'!K23 -> 0 | T39: 0 | U39: ='A Scope parameters'!C$3*T39 -> 0 | V39: 0 | X39: =$X$30*'A Scope parameters'!H23 -> 0 | Y39: =$Y$30*'A Scope parameters'!I23 -> 0 | Z39: =$Z$30*'A Scope parameters'!J23 -> 0 | AA39: =$AA$30*'A Scope parameters'!K23 -> 0 | AD39: 0 | AE39: ='A Scope parameters'!C$3*SUM(X39:AC39) -> 0 | AF39: 0 | AH39: 0 | AI39: 0 | AJ39: 0 | AK39: 0 | AN39: 0 | AO39: 0 | AP39: 0
B40: ='A Scope parameters'!B24 -> Extra kosten langere BOUWTIJD t.o.v. normaal | D40: =$D$30*'A Scope parameters'!H24 -> 0 | E40: =$E$30*'A Scope parameters'!I24 -> 0 | F40: =$F$30*'A Scope parameters'!J24 -> 0 | G40: =$G$30*'A Scope parameters'!K24 -> 0 | J40: 0 | K40: ='A Scope parameters'!C$3*J40 -> 0 | L40: 0 | N40: =$N$30*'A Scope parameters'!H24 -> 0 | O40: =$O$30*'A Scope parameters'!I24 -> 0 | P40: =$P$30*'A Scope parameters'!J24 -> 0 | Q40: =$Q$30*'A Scope parameters'!K24 -> 0 | T40: 0 | U40: ='A Scope parameters'!C$3*T40 -> 0 | V40: 0 | X40: =$X$30*'A Scope parameters'!H24 -> 0 | Y40: =$Y$30*'A Scope parameters'!I24 -> 0 | Z40: =$Z$30*'A Scope parameters'!J24 -> 0 | AA40: =$AA$30*'A Scope parameters'!K24 -> 0 | AD40: 0 | AE40: ='A Scope parameters'!C$3*SUM(X40:AC40) -> 0 | AF40: 0 | AH40: 0 | AI40: 0 | AJ40: 0 | AK40: 0 | AN40: 0 | AO40: 0 | AP40: 0
B41: ='A Scope parameters'!B26 -> Object overstijgende Risicoreservering scope change | D41: =$D$30*'A Scope parameters'!H26 -> 0 | E41: =$E$30*'A Scope parameters'!I26 -> 0 | F41: =$F$30*'A Scope parameters'!J26 -> 0 | G41: =$G$30*'A Scope parameters'!K26 -> 0 | J41: 0 | K41: ='A Scope parameters'!C$3*J41 -> 0 | L41: =J41+K41 -> 0 | N41: =$N$30*'A Scope parameters'!H26 -> 0 | O41: =$O$30*'A Scope parameters'!I26 -> 0 | P41: =$P$30*'A Scope parameters'!J26 -> 0 | Q41: =$Q$30*'A Scope parameters'!K26 -> 0 | T41: 0 | U41: ='A Scope parameters'!C$3*T41 -> 0 | V41: =T41+U41 -> 0 | X41: =$X$30*'A Scope parameters'!H26 -> 0 | Y41: =$Y$30*'A Scope parameters'!I26 -> 0 | Z41: =$Z$30*'A Scope parameters'!J26 -> 0 | AA41: =$AA$30*'A Scope parameters'!K26 -> 0 | AD41: 0 | AE41: ='A Scope parameters'!C$3*SUM(X41:AC41) -> 0 | AF41: =AD41+AE41 -> 0 | AH41: 0 | AI41: 0 | AJ41: 0 | AK41: 0 | AN41: 0 | AO41: 0 | AP41: 0
B42: ='A Scope parameters'!B27 -> Nader te detailleren | D42: =$D$30*'A Scope parameters'!H27 -> 0 | E42: =$E$30*'A Scope parameters'!I27 -> 0 | F42: =$F$30*'A Scope parameters'!J27 -> 0 | G42: =$G$30*'A Scope parameters'!K27 -> 0 | J42: 0 | K42: ='A Scope parameters'!C$3*J42 -> 0 | L42: =J42+K42 -> 0 | N42: =$N$30*'A Scope parameters'!H27 -> 0 | O42: =$O$30*'A Scope parameters'!I27 -> 0 | P42: =$P$30*'A Scope parameters'!J27 -> 0 | Q42: =$Q$30*'A Scope parameters'!K27 -> 0 | T42: 0 | U42: ='A Scope parameters'!C$3*T42 -> 0 | V42: =T42+U42 -> 0 | X42: =$X$30*'A Scope parameters'!H27 -> 0 | Y42: =$Y$30*'A Scope parameters'!I27 -> 0 | Z42: =$Z$30*'A Scope parameters'!J27 -> 0 | AA42: =$AA$30*'A Scope parameters'!K27 -> 0 | AD42: 0 | AE42: ='A Scope parameters'!C$3*SUM(X42:AC42) -> 0 | AF42: =AD42+AE42 -> 0 | AH42: 0 | AI42: 0 | AJ42: 0 | AK42: 0 | AN42: 0 | AO42: 0 | AP42: 0
D43: =SUM(D36:D42) -> 0 | E43: =SUM(E36:E42) -> 0 | F43: 0 | G43: 0 | H43: 0 | I43: 0 | J43: 0 | K43: 0 | L43: =SUM(L36:L42) -> 0 | N43: =SUM(N36:N42) -> 0 | O43: =SUM(O36:O42) -> 0 | P43: =SUM(P36:P42) -> 0 | Q43: =SUM(Q36:Q42) -> 0 | S43: =SUM(S36:S42) -> 0 | T43: =SUM(T36:T42) -> 0 | U43: =SUM(U36:U42) -> 0 | V43: =SUM(V36:V42) -> 0 | X43: =SUM(X36:X42) -> 0 | Y43: =SUM(Y36:Y42) -> 0 | Z43: =SUM(Z36:Z42) -> 0 | AA43: =SUM(AA36:AA42) -> 0 | AC43: =SUM(AC36:AC42) -> 0 | AD43: =SUM(AD36:AD42) -> 0 | AE43: =SUM(AE36:AE42) -> 0 | AF43: =SUM(AF36:AF42) -> 0 | AH43: =SUM(AH36:AH42) -> 0 | AI43: =SUM(AI36:AI42) -> 0 | AJ43: =SUM(AJ36:AJ42) -> 0 | AK43: =SUM(AK36:AK42) -> 0 | AM43: =SUM(AM36:AM42) -> 0 | AN43: =SUM(AN36:AN42) -> 0 | AO43: =SUM(AO36:AO42) -> 0 | AP43: =SUM(AP36:AP42) -> 0
F45: Toeslagen BK | G45: =SUM(D43:G43) -> 0 | P45: Toeslagen BK | Q45: =SUM(N43:Q43) -> 0 | Z45: Toeslagen BK | AA45: =SUM(X43:AA43) -> 0 | AJ45: Toeslagen BK | AK45: =SUM(AH43:AK43) -> 0
N46: Totaal bouwkosten | X46: Totaal bouwkosten | AH46: Totaal bouwkosten
D47: Totaal bouwkosten | L47: =L30+L43 -> 0 | N47: =N30+N43 -> 0 | O47: 0 | P47: 0 | Q47: 0 | R47: 0 | S47: 0 | T47: 0 | U47: 0 | V47: 0 | X47: =X30+X43 -> 0 | Y47: 0 | Z47: 0 | AA47: 0 | AB47: 0 | AC47: 0 | AD47: 0 | AE47: 0 | AF47: 0 | AH47: =AH30+AH43 -> 0 | AI47: 0 | AJ47: 0 | AK47: 0 | AL47: 0 | AM47: 0 | AN47: 0 | AO47: 0 | AP47: 0
B51: Vastgoedkosten | D51: Totaal vastgoedkosten | L51: ='A Scope parameters'!C8 -> 0 | N51: Totaal vastgoedkosten | V51: ='A Scope parameters'!N8 -> 0 | X51: Totaal vastgoedkosten | AF51: ='A Scope parameters'!U8 -> 0 | AP51: ='A Scope parameters'!C8 -> 0
K55: Ingestelde waarde | U55: Ingestelde waarde | AE55: Ingestelde waarde | AO55: Ingestelde waarde
B56: =$D56 -> Engineeringskosten IB (incl onderzoeken/adv) | D56: Engineeringskosten IB (incl onderzoeken/adv) | K56: ='A Scope parameters'!$C$11 -> 0.2 | L56: =L$47*K56 -> 0 | N56: =$D56 -> Engineeringskosten IB (incl onderzoeken/adv) | U56: ='A Scope parameters'!$C$11 -> 0.2 | V56: =V$47*U56 -> 0 | X56: =$D56 -> Engineeringskosten IB (incl onderzoeken/adv) | AE56: ='A Scope parameters'!$C$11 -> 0.2 | AF56: =AF$47*AE56 -> 0 | AH56: =$D56 -> Engineeringskosten IB (incl onderzoeken/adv) | AO56: ='A Scope parameters'!$C$11 -> 0.2 | AP56: =AP$47*AO56 -> 0
B57: =D57 -> Engineeringskosten OG (interne uren) | D57: Engineeringskosten OG (interne uren) | K57: ='A Scope parameters'!C12 -> 0.1 | L57: =L$47*K57 -> 0 | N57: =$D$57 -> Engineeringskosten OG (interne uren) | U57: ='A Scope parameters'!C12 -> 0.1 | V57: =V$47*U57 -> 0 | X57: Totaal interne uren | AE57: ='A Scope parameters'!C12 -> 0.1 | AF57: =AF$47*AE57 -> 0 | AH57: Totaal interne uren | AO57: ='A Scope parameters'!C12 -> 0.1 | AP57: =AP$47*AO57 -> 0
B58: =$D58 -> Totaal Engineerinskosten (OG+IB) | D58: Totaal Engineerinskosten (OG+IB) | L58: =SUM(L56:L57) -> 0 | N58: =$D58 -> Totaal Engineerinskosten (OG+IB) | V58: =SUM(V56:V57) -> 0 | X58: =$D58 -> Totaal Engineerinskosten (OG+IB) | AF58: =SUM(AF56:AF57) -> 0 | AH58: =$D58 -> Totaal Engineerinskosten (OG+IB) | AP58: =SUM(AP56:AP57) -> 0
K59: =SUM(K56:K57) -> 0.3 | U59: =SUM(U56:U57) -> 0.3 | AE59: =SUM(AE56:AE57) -> 0.3 | AO59: =SUM(AO56:AO57) -> 0.3
B62: Overige bijkomende kosten | D62: Overige bijkomende kosten | L62: ='A Scope parameters'!$C$14*'E Rekenblad'!L47 -> 0 | N62: Overige bijkomende kosten | V62: ='A Scope parameters'!$C$14*'E Rekenblad'!V47 -> 0 | X62: Overige bijkomende kosten | AF62: ='A Scope parameters'!$C$14*'E Rekenblad'!AF47 -> 0 | AH62: Overige bijkomende kosten | AP62: ='A Scope parameters'!$C$14*'E Rekenblad'!AP47 -> 0
B65: Object overstijgende Risicoreservering | L65: =(L47+L51+L58+L62)*'A Scope parameters'!$C$25 -> 0 | V65: =(V47+V51+V58+V62)*'A Scope parameters'!$C$25 -> 0 | AF65: =(AF47+AF51+AF58+AF62)*'A Scope parameters'!$C$25 -> 0 | AP65: =V65+AF65 -> 0
B68: =$D68 -> Totaal investeringskosten | D68: Totaal investeringskosten | L68: =L47+L51+L58+L62+L65 -> 0 | N68: =$D68 -> Totaal investeringskosten | V68: =V47+V51+V58+V62+V65 -> 0 | X68: =$D68 -> Totaal investeringskosten | AF68: =AF47+AF51+AF58+AF62+AF65 -> 0 | AH68: =$D68 -> Totaal investeringskosten | AP68: =AP47+AP51+AP58+AP62+AP65 -> 0
B73: Sloopkosten | D73: Totaal sloopkosten | L73: ='A Scope parameters'!C2 -> 0 | AH73: Totaal sloopkosten | AP73: ='A Scope parameters'!$C$2 -> 0
A102: mjwmbakker

Sheet Bijlage Begrippen SSK
A1: SSK Methodiek in a nutshell
A2: Voorbeeld | B2: Kostenopbouw nieuwbouw van een garage
A3: Van: | B3: Marcel Bakker RHDHV
A4: Datum: | B4: 2025-04-09
A6: ALGEMEEN: | B6: Hieronder de onderverdeling van de kosten op een objectblad ( in dit geval per discipline maar kan bv ook geografisch)
B7: In het summary blad SSK worden de totalen van deze objectbladen overzichtelijke weergegeven.
B8: De kleuren in de onderstaande tabel corresponderen met de kleuren in de figuur rechts ("SSK methodiek in a nutshell - OPBOUW BOUWKOSTEN")
A9: 1) BOUWKOSTEN
A10: A
B11: BDBK= | C11: Benoemde Direkte bouwkosten | G11: Prijzen
E12: Hoeveelheid | F12: eenheid | G12: uren / materialen | H12: Totalen
A14: Benoemde directe bouwkosten | C14: INV-BK-Civ | D14: Heipalen | H14: 1500
A15: =A14 -> Benoemde directe bouwkosten | C15: INV-BK-Civ | D15: bekisting | H15: 2500
A16: =A15 -> Benoemde directe bouwkosten | C16: INV-BK-Civ | D16: wapening | H16: 800
A17: Benoemde directe bouwkosten | C17: INV-BK-Civ | D17: beton | H17: 2000
A18: Benoemde directe bouwkosten
A19: Benoemde directe bouwkosten | C19: INV-BK-Civ | D19: Halfsteens muur | H19: 5000
A20: Benoemde directe bouwkosten | C20: INV-BK-Civ | D20: isolatie | H20: 1000
A21: Benoemde directe bouwkosten | C21: INV-BK-Civ | D21: Loopdeur | H21: 500
A22: Benoemde directe bouwkosten | C22: INV-BK-Civ | D22: gordingen | H22: 1000
A23: Benoemde directe bouwkosten | C23: INV-BK-Civ | D23: dakplaten geisoleerd | H23: 3000
A24: Benoemde directe bouwkosten | C24: INV-BK-Civ | D24: Bitumen | H24: 1500
A25: Benoemde directe bouwkosten | C25: INV-BK-Civ | D25: Zinkrand | H25: 400
A27: =A14 -> Benoemde directe bouwkosten | C27: E&I | D27: Electrakabels | H27: 600
A28: =A15 -> Benoemde directe bouwkosten | C28: E&I | D28: Wandcontacdozen | H28: 200
A29: Benoemde directe bouwkosten | C29: E&I | D29: Aarding | H29: 150
A31: =A14 -> Benoemde directe bouwkosten | C31: WTB | D31: Automatische kanteldeur | H31: 3000
A34: A | B34: BDBK= | C34: Benoemde Direkte bouwkosten | H34: =SUM(H13:H33) -> 23150
A36: B | B36: NTDBK= | C36: Nader te detailleren bouwkosten | G36: 0.1 | H36: =G36*H34 -> 2315
A38: C (=A+B) | B38: DBK= | C38: Direkte bouwkosten (directe bouwkosten aannemer) | H38: =H34+H36 -> 25465
A40: D | B40: BIBK= | C40: Benoemde Indirekte bouwkosten (staartkosten aannemer)
A41: Benoemde Indirecte bouwkosten | C41: INV-IBK | D41: Bouwkeet | H41: 1500
A42: Benoemde Indirecte bouwkosten | C42: =C41 -> INV-IBK | D42: Overleg | H42: 500
A43: Benoemde Indirecte bouwkosten | C43: =C42 -> INV-IBK | D43: Inkoop | H43: 600
A44: Benoemde Indirecte bouwkosten | C44: INV-IBK | D44: Begroten | H44: 150
A45: Benoemde Indirecte bouwkosten | C45: INV-IBK | D45: Administratie | H45: 150
A46: Benoemde Indirecte bouwkosten | C46: =C41 -> INV-IBK | D46: Toezicht | H46: 2000
C47: Benoemde Indirekte bouwkosten (staartkosten aannemer) | H47: =SUM(H41:H46) -> 4900
A49: E (=C+D) | B49: VBK= | C49: Voorziene bouwkosten | H49: =H38+H47 -> 30365
A51: F | B51: NBORB+BORB= | C51: Niet benoemde en benoemde object risico reservering BK | G51: 0.1 | H51: =G51*H49 -> 3036.5
A53: G (=E+F) | B53: BK= | C53: 1) Totale bouwkosten | H53: =H49+H51 -> 33401.5
C54: (kosten aannemer)
C60: 4 Hoofdgroepen in de SSK
C61: Zelfde methode van kosten opbouw voor de volgende rubrieken
C63: 1) Totale bouwkosten | H63: =H53 -> 33401.5
C64: 2) VASTGOED KOSTEN | H64: 8000 | I64: 2) ingeklapt
C65: 3) ENGINEERINGSKOSTEN ( normaal OG+IB) | H65: 700 | I65: 3) ingeklapt
C66: 4) OVERIGE KOSTEN | H66: 300 | I66: 4) ingeklapt
C68: SUBTOTAAL INVESTERINGSKOSTEN | H68: =SUM(H63:H67) -> 42401.5
C70: OBJECT OVERSTIJGENDE RISICO'S | G70: 0.1 | H70: =H68*G70 -> 4240.15 | I70: (vallen niet toe te delen aan 1 object)
C72: INVESTERINGSKOSTEN DETERMINISTISCH | H72: =H68+H70 -> 46641.65
C74: Bandbreedte raming | E74: P15 | G74: 41000 | I74: P85 | J74: 53000
C75: (probabilistisch uit te rekenen) | G75: voorbeeld | J75: voorbeeld
C77: PROBABILISTISCH RAMEN
C78: P15 | D78: 15e percentiel. Dit betekent dat de kans 15% is dat de kosten LAGER uitvallen dan het bij P15 genoemde bedrag
C79: P50 | D79: 50e percentiel. De kans dat de werkelijke kosten hoger of lager uitvallen dan dit bedrag zijn beide 50%. Dit wordt tevens de mediaan genoemd.
C80: P85 | D80: 85e percentiel. Dit betekent dat de kans 15% is dat de kosten HOGER uitvallen dan het bij P85 genoemde bedrag
C82: Betrouwbaarheidsinterval P15 tot P85. Dit betekent dat de kans 70% is dat de kosten binnen deze 2 waarden vallen.
C83: Dit noemen we ook wel de bandbreedte van de raming maar daarbij moet wel de betrouwbaarheid (uitgedrukt in kans) opgegeven worden.

Sheet F Redundantietoeslag (hidden)
C1: Uitleg redundantie factoren
D2: Kosten/ straat
D3: Y(mln) | E3: = | F3: a | G3: * | H3: x | I3: ^ | J3: b | L3: Kosten x | R3: Meest waarschijnlijk | W3: Pull down menu
A4: Machtfactor | J4: 0.7 | L4: aantal straten | M4: Verhouding | P4: Machtfactor | Q4: 0.6 | R4: 0.65 | S4: 0.7 | T4: 0.75 | U4: 0.8 | W4: Tabblad A
A5: 1 van | B5: 1 | C5: Straat | D5: =H5^J5 -> 5.011872336 | E5: = | F5: 1 | G5: * | H5: 10 | I5: ^ | J5: =J$4 -> 0.7 | L5: =B5*D5 -> 5.011872336 | M5: =L5/L$5 -> 1 | P5: 1 | Q5: 1 | R5: 1 | S5: 1 | T5: 1 | U5: 1 | W5: 0
A6: 1 van | B6: 2 | C6: Straten | D6: =H6^J6 -> 3.085169314 | E6: = | F6: 1 | G6: * | H6: =H5/B6 -> 5 | I6: ^ | J6: =J$4 -> 0.7 | L6: =B6*D6 -> 6.170338627 | M6: =L6/L$5 -> 1.231144413 | P6: 2 | Q6: 1.319507911 | R6: 1.274560627 | S6: 1.2 | T6: 1.189207115 | U6: 1.148698355 | W6: =S6-1 -> 0.2
A7: 1 van | B7: 3 | C7: Straten | D7: =H7^J7 -> 2.322817673 | E7: = | F7: 1 | G7: * | H7: =H5/B7 -> 3.333333333 | I7: ^ | J7: =J$4 -> 0.7 | L7: =B7*D7 -> 6.968453019 | M7: =L7/L$5 -> 1.39038917 | P7: 3 | Q7: 1.55091428 | R7: 1.467945752 | S7: 1.3938 | T7: 1.315086834 | U7: 1.244734255 | W7: =S7-1 -> 0.3938
A8: 1 van | B8: 4 | C8: Straten | D8: =H8^J8 -> 1.899144482 | E8: = | F8: 1 | G8: * | H8: =H5/B8 -> 2.5 | I8: ^ | J8: =J$4 -> 0.7 | L8: =B8*D8 -> 7.596577929 | M8: =L8/L$5 -> 1.515716567 | P8: 4 | Q8: 1.741101127 | R8: 1.624504793 | S8: 1.52 | T8: 1.414213562 | U8: 1.319507911 | W8: =S8-1 -> 0.52
W9: Keuze | X9: 1
